Workbook

Sheet Результат
A2: Команда 1 | B2: Команда 2 | C2: Исход1 | D2: Исход2 | E2: 1x2 | G2: ТБ3.5 | H2: ТМ6.5 | I2: Тотал | J2: ИТБ1 | K2: ИТМ1 | L2: ИТБ2 | M2: ИТМ2 | N2: ТС 1 | O2: ТС 2 | P2: ТС 3 | Q2: Первый гол | R2: Обе забьют | S2: Забьют | AB2: 1Х2 | AC2: 1Х2 | AD2: 1-Х-2 | AF2: ТБ2.5 | AG2: 1Х | AM2: Ср.Т | AN2: ТМ2.5 | AR2: Тотал | AS2: Т1 | AT2: Т2 | AU2: Счет 1 | AW2: Счет 2 | AY2: Счет 3 | BA2: 1-ый Гол | BD2: Индекс Работы | BE2: Индекс Победы | BF2: Индекс Формы | BG2: Индекс Работы | BH2: Индекс Победы | BI2: Индекс Формы
A3: =Прогноз!I1 -> Линчеппинг | B3: =Прогноз!L1 -> Фрелунда | C3: =Прогноз!A12 -> Ф2(0) | D3: =Прогноз!H25 -> П2 | E3: =Прогноз!G1 -> 0.3117535582 | F3: =Прогноз!O1 -> 0.6882464418 | G3: =Прогноз!I16/100 -> 1.751190476 | H3: =Прогноз!I17/100 -> -0.7511904762 | I3: =Прогноз!C12 -> ТБ4 | J3: =Прогноз!B19 -> 1 | K3: =Прогноз!C19 -> 2.5 | L3: =Прогноз!B20 -> 3 | M3: =Прогноз!C20 -> 4.5 | N3: =CONCATENATE(ROUND(Прогноз!B23,0),"-",ROUND(Прогноз!C23,0)) -> 2-3 | O3: =CONCATENATE(ROUND(Прогноз!B25,0),"-",ROUND(Прогноз!C25,0)) -> 2-3 | P3: =CONCATENATE(ROUND(Прогноз!B27,0),"-",ROUND(Прогноз!C27,0)) -> 3-5 | Q3: =Прогноз!B15 -> Фрелунда | R3: =Прогноз!E4 -> ДА | S3: =Прогноз!H4 -> 5.102380952
A4: Зноймо | B4: Ред Булл Зальцбург | C4: X2 | D4: П2 | E4: 0.3994467909 | F4: 0.6005532091 | G4: 2.125 | H4: -1.125 | I4: ТБ4 | J4: 2 | K4: 3.5 | L4: 3 | M4: 4.5 | N4: 2-4 | O4: 3-3 | P4: 4-6 | Q4: Ред Булл Зальцбург | R4: ДА | S4: 5.85
A5: Ниппон | B5: Сахалин | C5: Ф2(0) | D5: П2 | E5: 0.2706259833 | F5: 0.7293740167 | G5: 2.616666667 | H5: -1.616666667 | I5: ТБ4 | J5: 1 | K5: 2.5 | L5: 5 | M5: 6.5 | N5: 2-5 | O5: 3-5 | P5: 2-5 | Q5: Сахалин | R5: ДА | S5: 6.833333333
A6: ЕфБ Айсхоккей | B6: Ольборг | C6: Ф1(0) | D6: П1 | E6: 0.6995265122 | F6: 0.3004734878 | G6: 1.96875 | H6: -0.96875 | I6: ТБ4 | J6: 3 | K6: 4.5 | L6: 1 | M6: 2.5 | N6: 4-2 | O6: 4-1 | P6: 6-4 | Q6: ЕфБ Айсхоккей | R6: ДА | S6: 5.5375
A7: Рингстед | B7: Оденсе Бульдогс | C7: П1 | D7: П1 | E7: 0.8547524688 | F7: 0.1452475312 | G7: 2.779166667 | H7: -1.779166667 | I7: ТБ4 | J7: 7 | K7: 8.5 | L7: 0 | M7: 1.5 | N7: 6-1 | O7: 6-2 | P7: 5-4 | Q7: Рингстед | R7: ДА | S7: 7.158333333
A8: Родорве Майти Буллз | B8: Фредериксхавн Уайт Хокс | C8: Ф2(0) | D8: 1X | E8: 0.3266491023 | F8: 0.6733508977 | G8: 2.5125 | H8: -1.5125 | I8: ТБ4 | J8: 2 | K8: 3.5 | L8: 3 | M8: 4.5 | N8: 3-4 | O8: 4-4 | P8: 2-5 | Q8: Фредериксхавн Уайт Хокс | R8: ДА | S8: 6.625
A9: Сондерийске | B9: Хернинг Блю Фокс | C9: Х | D9: 1X | E9: 0.5005151921 | F9: 0.4994848079 | G9: 1.948214286 | H9: -0.9482142857 | I9: ТБ4 | J9: 2 | K9: 3.5 | L9: 2 | M9: 3.5 | N9: 3-3 | O9: 3-3 | P9: 5-3 | Q9: Хернинг Блю Фокс | R9: ДА | S9: 5.496428571
A10: Хвидори | B10: Херлев | C10: X2 | D10: П2 | E10: 0.4154123456 | F10: 0.5845876544 | G10: 2.2375 | H10: -1.2375 | I10: ТБ4 | J10: 3 | K10: 4.5 | L10: 3 | M10: 4.5 | N10: 3-4 | O10: 3-3 | P10: 7-5 | Q10: Хвидори | R10: ДА | S10: 6.075
A11: Алматы | B11: Temirtau | P11: 7-3 | R11: ДА
A12: Астана | B12: Бейбарыс | C12: П2 | D12: Х2 | E12: 0.01455031696 | F12: 0.985449683 | G12: 2.3 | H12: -1.3 | I12: ТБ4 | J12: -1 | K12: 0.5 | L12: 8 | M12: 9.5 | N12: 0-6 | O12: 1-5 | P12: 2-7 | Q12: Бейбарыс | R12: ДА | S12: 6.2
A13: Рига Призма | B13: Земгале | C13: Ф2(0) | D13: П2 | E13: 0.2909728963 | F13: 0.7090271037 | G13: 1.8125 | H13: -0.8125 | I13: ТБ4 | J13: 1 | K13: 2.5 | L13: 3 | M13: 4.5 | N13: 2-4 | O13: 2-3 | P13: 4-4 | Q13: Земгале | R13: ДА | S13: 5.225
A14: Волеренга | B14: Ставангер | C14: 1Х | D14: 1X | E14: 0.5515491416 | F14: 0.4484508584 | G14: 1.575 | H14: -0.575 | I14: ТБ4 | J14: 1 | K14: 2.5 | L14: 1 | M14: 2.5 | N14: 2-2 | O14: 2-2 | P14: 3-4 | Q14: Волеренга | R14: ДА | S14: 4.75
A15: Лиллехаммер | B15: Стьернен | C15: П1 | D15: П1 | E15: 0.8239186796 | F15: 0.1760813204 | G15: 2.0375 | H15: -1.0375 | I15: ТБ4 | J15: 5 | K15: 6.5 | L15: 0 | M15: 1.5 | N15: 5-1 | O15: 5-1 | P15: 4-3 | Q15: Лиллехаммер | R15: ДА | S15: 5.675
A16: Манглеруд | B16: Фриск Аскер | C16: Ф2(0) | D16: П2 | E16: 0.332573758 | F16: 0.667426242 | G16: 2.475 | H16: -1.475 | I16: ТБ4 | J16: 2 | K16: 3.5 | L16: 4 | M16: 5.5 | N16: 2-4 | O16: 3-4 | P16: 5-6 | Q16: Фриск Аскер | R16: ДА | S16: 6.55
A17: Спарта Cарпcборг | B17: Сторхамар | C17: Ф1(0) | D17: П1 | E17: 0.7340489859 | F17: 0.2659510141 | G17: 1.329166667 | H17: -0.3291666667 | I17: ТБ4 | J17: 2 | K17: 3.5 | L17: 1 | M17: 2.5 | N17: 3-2 | O17: 2-1 | P17: 4-6 | Q17: Спарта Cарпcборг | R17: ДА | S17: 4.258333333
A18: Катовице | B18: ПЖЛ Катовице U23 | C18: П1 | D18: 1X | E18: 0.9854512765 | F18: 0.01454872353 | G18: 3.028125 | H18: -2.028125 | I18: ТБ4 | J18: 10 | K18: 11.5 | L18: -2 | M18: -0.5 | N18: 8-0 | O18: 7-1 | P18: 11-0 | Q18: Катовице | R18: НЕТ | S18: 7.65625
A19: Локомотив | B19: Металлург Магнитогорск | C19: X2 | D19: Х2 | E19: 0.416559037 | F19: 0.583440963 | G19: 1.077083333 | H19: -0.07708333333 | I19: ТБ4 | J19: 1 | K19: 2.5 | L19: 1 | M19: 2.5 | N19: 2-2 | O19: 2-2 | P19: 3-0 | Q19: Металлург Магнитогорск | R19: ДА | S19: 3.754166667
A20: Северсталь | B20: Трактор | C20: 1Х | D20: 1X | E20: 0.6400524421 | F20: 0.3599475579 | G20: 1.166666667 | H20: -0.1666666667 | I20: ТБ4 | J20: 3 | K20: 4.5 | L20: 1 | M20: 2.5 | N20: 2-2 | O20: 3-2 | P20: 2-2 | Q20: Северсталь | R20: ДА | S20: 3.933333333
A21: Ермак | B21: Нефтяник | C21: X2 | D21: Х2 | E21: 0.4106426749 | F21: 0.5893573251 | G21: 1.375 | H21: -0.375 | I21: ТБ4 | J21: 1 | K21: 2.5 | L21: 2 | M21: 3.5 | N21: 2-3 | O21: 2-2 | P21: 2-5 | Q21: Ермак | R21: ДА | S21: 4.35
A22: Сокол | B22: Ижсталь | C22: Ф1(0) | D22: П1 | E22: 0.6789649181 | F22: 0.3210350819 | G22: 1.720833333 | H22: -0.7208333333 | I22: ТБ4 | J22: 3 | K22: 4.5 | L22: 1 | M22: 2.5 | N22: 3-2 | O22: 3-2 | P22: 4-2 | Q22: Сокол | R22: ДА | S22: 5.041666667
A23: Челмет | B23: Южный Урал | C23: 1Х | D23: П1 | E23: 0.6495319097 | F23: 0.3504680903 | G23: 1.6625 | H23: -0.6625 | I23: ТБ4 | J23: 3 | K23: 4.5 | L23: 1 | M23: 2.5 | N23: 3-2 | O23: 3-2 | P23: 4-3 | Q23: Челмет | R23: ДА | S23: 4.925
A24: Рубин | B24: Торпедо | C24: Х | D24: Х2 | E24: 0.4994108467 | F24: 0.5005891533 | G24: 1.3875 | H24: -0.3875 | I24: ТБ4 | J24: 1 | K24: 2.5 | L24: 2 | M24: 3.5 | N24: 2-2 | O24: 2-2 | P24: 4-2 | Q24: Торпедо | R24: ДА | S24: 4.375
A25: ЦСК ВВС | B25: Дизель | D25: Х2 | G25: 1.1875 | H25: -0.1875 | I25: ТБ4 | J25: 1 | K25: 2.5 | L25: 2 | M25: 3.5 | N25: 2-2 | O25: 2-1 | P25: 4-4 | Q25: ЦСК ВВС | R25: ДА | S25: 3.975
A26: Кузнецкие Медведи | B26: Стальные Лисы | C26: X2 | D26: П2 | E26: 0.4184439302 | F26: 0.5815560698 | G26: 1.529166667 | H26: -0.5291666667 | I26: ТБ4 | J26: 2 | K26: 3.5 | L26: 2 | M26: 3.5 | N26: 2-3 | O26: 2-2 | P26: 2-3 | Q26: Стальные Лисы | R26: ДА | S26: 4.658333333
A27: Ладья | B27: Омские Ястребы | C27: Х | D27: Х2 | E27: 0.505267655 | F27: 0.494732345 | G27: 1.874107143 | H27: -0.8741071429 | I27: ТБ4 | J27: 2 | K27: 3.5 | L27: 2 | M27: 3.5 | N27: 3-3 | O27: 2-3 | P27: 2-4 | Q27: Омские Ястребы | R27: ДА | S27: 5.348214286
A28: Сибирские Снайперы | B28: Сарматы | C28: 1Х | D28: П1 | E28: 0.5543883854 | F28: 0.4456116146 | G28: 1.810416667 | H28: -0.8104166667 | I28: ТБ4 | J28: 2 | K28: 3.5 | L28: 2 | M28: 3.5 | N28: 3-2 | O28: 3-2 | P28: 3-1 | Q28: Сибирские Снайперы | R28: ДА | S28: 5.220833333
A29: Алтай | B29: Авто | C29: П2 | D29: Х2 | E29: 0.02568937073 | F29: 0.9743106293 | G29: 1.975 | H29: -0.975 | I29: ТБ4 | J29: -1 | K29: 0.5 | L29: 6 | M29: 7.5 | N29: 0-5 | O29: 1-5 | P29: 1-6 | Q29: Авто | R29: ДА | S29: 5.55
A30: Ирбис | B30: Белые Медведи | C30: X2 | D30: 1X | E30: 0.4482413167 | F30: 0.5517586833 | G30: 1.675 | H30: -0.675 | I30: ТБ4 | J30: 1 | K30: 2.5 | L30: 2 | M30: 3.5 | N30: 2-3 | O30: 2-2 | P30: 2-3 | Q30: Белые Медведи | R30: ДА | S30: 4.95
A31: Снежные Барсы | B31: Толпар | C31: Х | D31: 1X | E31: 0.5051563056 | F31: 0.4948436944 | G31: 2.045833333 | H31: -1.045833333 | I31: ТБ4 | J31: 2 | K31: 3.5 | L31: 3 | M31: 4.5 | N31: 2-3 | O31: 3-3 | P31: 1-6 | Q31: Снежные Барсы | R31: ДА | S31: 5.691666667
A32: Спутник Альметьевск | B32: Тюменский Легион | C32: Ф1(0) | D32: Х2 | E32: 0.6878842336 | F32: 0.3121157664 | G32: 2.158333333 | H32: -1.158333333 | I32: ТБ4 | J32: 3 | K32: 4.5 | L32: 3 | M32: 4.5 | N32: 3-3 | O32: 3-3 | P32: 3-4 | Q32: Спутник Альметьевск | R32: ДА | S32: 5.916666667
A33: Реактор | B33: Мамонты Югры | C33: 1Х | D33: П1 | E33: 0.5781643877 | F33: 0.4218356123 | G33: 1.725 | H33: -0.725 | I33: ТБ4 | J33: 2 | K33: 3.5 | L33: 2 | M33: 3.5 | N33: 3-2 | O33: 3-2 | P33: 2-3 | Q33: Реактор | R33: ДА | S33: 5.05
A34: Атланты | B34: Чайка | C34: 1Х | D34: Х2 | E34: 0.5857476259 | F34: 0.4142523741 | G34: 2.078125 | H34: -1.078125 | I34: ТБ4 | J34: 4 | K34: 5.5 | L34: 2 | M34: 3.5 | N34: 3-3 | O34: 4-2 | P34: 5-4 | Q34: Атланты | R34: ДА | S34: 5.75625
A35: Тверичи | B35: Полёт | C35: П1 | D35: П1 | E35: 0.9198218424 | F35: 0.08017815764 | G35: 2.9 | H35: -1.9 | I35: ТБ4 | J35: 6 | K35: 7.5 | L35: 1 | M35: 2.5 | N35: 6-2 | O35: 5-2 | P35: 7-2 | Q35: Тверичи | R35: ДА | S35: 7.4
A36: Агидель (Ж) | B36: Сборная Свердловской области (Ж) | C36: П1 | D36: 1X | E36: 0.9828493241 | F36: 0.01715067592 | G36: 3.54375 | H36: -2.54375 | I36: ТБ4 | J36: 11 | K36: 12.5 | L36: -3 | M36: -1.5 | N36: 9-0 | O36: 8-1 | P36: 14-0 | Q36: Агидель (Ж) | R36: НЕТ | S36: 8.6875
A37: Жилина | B37: Попрад | C37: X2 | D37: 1X | E37: 0.4576012223 | F37: 0.5423987777 | G37: 1.675 | H37: -0.675 | I37: ТБ4 | J37: 2 | K37: 3.5 | L37: 2 | M37: 3.5 | N37: 2-3 | O37: 3-2 | P37: 3-4 | Q37: Жилина | R37: ДА | S37: 4.95
A38: Детва | B38: Микулаш | C38: 1Х | D38: П1 | E38: 0.616940414 | F38: 0.383059586 | G38: 2.303571429 | H38: -1.303571429 | I38: ТБ4 | J38: 4 | K38: 5.5 | L38: 2 | M38: 3.5 | N38: 4-3 | O38: 4-3 | P38: 4-3 | Q38: Детва | R38: ДА | S38: 6.207142857
A39: Нитра | B39: 05 Банска Быстрица | C39: X2 | D39: П2 | E39: 0.4138180221 | F39: 0.5861819779 | G39: 2.24375 | H39: -1.24375 | I39: ТБ4 | J39: 2 | K39: 3.5 | L39: 3 | M39: 4.5 | N39: 3-3 | O39: 3-3 | P39: 5-4 | Q39: Нитра | R39: ДА | S39: 6.0875
A40: Филадельфия | B40: Колорадо | C40: X2 | D40: П2 | E40: 0.3867571255 | F40: 0.6132428745 | G40: 1.980357143 | H40: -0.9803571429 | I40: ТБ4 | J40: 2 | K40: 3.5 | L40: 3 | M40: 4.5 | N40: 2-3 | O40: 3-3 | P40: 4-7 | Q40: Колорадо | R40: ДА | S40: 5.560714286
A41: Детройт | B41: Каролина | C41: X2 | D41: П2 | E41: 0.3613655452 | F41: 0.6386344548 | G41: 1.607142857 | H41: -0.6071428571 | I41: ТБ4 | J41: 2 | K41: 3.5 | L41: 3 | M41: 4.5 | N41: 2-3 | O41: 2-2 | P41: 4-3 | Q41: Каролина | R41: ДА | S41: 4.814285714
A42: Виннипег | B42: Сент-Луис | C42: 1Х | D42: П1 | E42: 0.6092090547 | F42: 0.3907909453 | G42: 1.9125 | H42: -0.9125 | I42: ТБ4 | J42: 3 | K42: 4.5 | L42: 1 | M42: 2.5 | N42: 3-2 | O42: 3-3 | P42: 6-3 | Q42: Виннипег | R42: ДА | S42: 5.425
A43: Ванкувер | B43: Вашингтон | C43: 1Х | D43: 1X | E43: 0.5112323625 | F43: 0.4887676375 | G43: 2.158333333 | H43: -1.158333333 | I43: ТБ4 | J43: 3 | K43: 4.5 | L43: 2 | M43: 3.5 | N43: 3-3 | O43: 4-3 | P43: 5-3 | Q43: Ванкувер | R43: ДА | S43: 5.916666667
A44: Калпа | B44: Ильвес | C44: X2 | D44: П2 | E44: 0.431194907 | F44: 0.568805093 | G44: 1.825 | H44: -0.825 | I44: ТБ4 | J44: 2 | K44: 3.5 | L44: 3 | M44: 4.5 | N44: 2-3 | O44: 3-3 | P44: 3-5 | Q44: Ильвес | R44: ДА | S44: 5.25
A45: Брест | B45: Анже | C45: Х | D45: Х2 | E45: 0.4904406634 | F45: 0.5095593366 | G45: 2.583333333 | H45: -1.583333333 | I45: ТБ4 | J45: 3 | K45: 4.5 | L45: 3 | M45: 4.5 | N45: 3-3 | O45: 4-3 | P45: 3-7 | Q45: Брест | R45: ДА | S45: 6.766666667
A46: Эпиналь | B46: Страсбур | C46: Ф1(0) | D46: П1 | E46: 0.6771158831 | F46: 0.3228841169 | G46: 2.625 | H46: -1.625 | I46: ТБ4 | J46: 4 | K46: 5.5 | L46: 2 | M46: 3.5 | N46: 4-3 | O46: 4-3 | P46: 4-4 | Q46: Эпиналь | R46: ДА | S46: 6.85
A47: Англе | B47: Бордо | C47: Ф2(0) | D47: П2 | E47: 0.3385558262 | F47: 0.6614441738 | G47: 2.121428571 | H47: -1.121428571 | I47: ТБ4 | J47: 2 | K47: 3.5 | L47: 3 | M47: 4.5 | N47: 2-3 | O47: 3-3 | P47: 2-3 | Q47: Бордо | R47: ДА | S47: 5.842857143
A48: Мон-Блан | B48: Бриансон | C48: X2 | D48: Х2 | E48: 0.4713276252 | F48: 0.5286723748 | G48: 1.929166667 | H48: -0.9291666667 | I48: ТБ4 | J48: 2 | K48: 3.5 | L48: 3 | M48: 4.5 | N48: 3-3 | O48: 3-2 | P48: 5-6 | Q48: Мон-Блан | R48: ДА | S48: 5.458333333
A49: Спарта | B49: Литвинов | C49: Ф1(0) | D49: П1 | E49: 0.6979280902 | F49: 0.3020719098 | G49: 1.95 | H49: -0.95 | I49: ТБ4 | J49: 4 | K49: 5.5 | L49: 2 | M49: 3.5 | N49: 4-2 | O49: 3-3 | P49: 6-1 | Q49: Спарта | R49: ДА | S49: 5.5
A50: Лангнау Тайгерз | B50: Лозанна | C50: 1Х | D50: П1 | E50: 0.6357925796 | F50: 0.3642074204 | G50: 1.720833333 | H50: -0.7208333333 | I50: ТБ4 | J50: 3 | K50: 4.5 | L50: 2 | M50: 3.5 | N50: 3-2 | O50: 3-2 | P50: 4-2 | Q50: Лангнау Тайгерз | R50: ДА | S50: 5.041666667
A51: Лугано | B51: Цуг | C51: X2 | D51: 1X | E51: 0.4802702813 | F51: 0.5197297187 | G51: 1.66875 | H51: -0.66875 | I51: ТБ4 | J51: 2 | K51: 3.5 | L51: 1 | M51: 2.5 | N51: 3-2 | O51: 3-2 | P51: 3-4 | Q51: Лугано | R51: ДА | S51: 4.9375
A52: Рапперсвиль | B52: Серветт | C52: Ф2(0) | D52: П2 | E52: 0.268445975 | F52: 0.731554025 | G52: 1.8125 | H52: -0.8125 | I52: ТБ4 | J52: 1 | K52: 2.5 | L52: 4 | M52: 5.5 | N52: 2-4 | O52: 2-3 | P52: 0-4 | Q52: Серветт | R52: ДА | S52: 5.225
A53: Фрибург | B53: Амбри Пиотта | C53: X2 | D53: Х2 | E53: 0.4756934217 | F53: 0.5243065783 | G53: 1.952083333 | H53: -0.9520833333 | I53: ТБ4 | J53: 2 | K53: 3.5 | L53: 2 | M53: 3.5 | N53: 3-3 | O53: 3-3 | P53: 1-5 | Q53: Фрибург | R53: ДА | S53: 5.504166667
A54: Цюрих Лайонз | B54: Биль | C54: 1Х | D54: 1X | E54: 0.5493080922 | F54: 0.4506919078 | G54: 1.608333333 | H54: -0.6083333333 | I54: ТБ4 | J54: 2 | K54: 3.5 | L54: 2 | M54: 3.5 | N54: 2-3 | O54: 2-2 | P54: 5-4 | Q54: Цюрих Лайонз | R54: ДА | S54: 4.816666667
A55: Academy Zug | B55: Ажуа | C55: X2 | D55: П2 | E55: 0.3577122204 | F55: 0.6422877796 | G55: 2.65625 | H55: -1.65625 | I55: ТБ4 | J55: 2 | K55: 3.5 | L55: 5 | M55: 6.5 | N55: 2-5 | O55: 3-4 | P55: 3-7 | Q55: Ажуа | R55: ДА | S55: 6.9125
A56: Еллоу Винтертур | B56: Тичино Рокетс | C56: Ф1(0) | D56: П1 | E56: 0.7166477549 | F56: 0.2833522451 | G56: 1.86875 | H56: -0.86875 | I56: ТБ4 | J56: 4 | K56: 5.5 | L56: 1 | M56: 2.5 | N56: 4-2 | O56: 3-2 | P56: 6-2 | Q56: Еллоу Винтертур | R56: ДА | S56: 5.3375
A57: Лангенталь | B57: Шо-де-Фондз | C57: 1Х | D57: Х2 | E57: 0.5737001798 | F57: 0.4262998202 | G57: 1.6625 | H57: -0.6625 | I57: ТБ4 | J57: 2 | K57: 3.5 | L57: 1 | M57: 2.5 | N57: 3-2 | O57: 3-2 | P57: 3-3 | Q57: Лангенталь | R57: ДА | S57: 4.925
A58: Тургау | B58: Лионс | C58: Ф1(0) | D58: П1 | E58: 0.6617624208 | F58: 0.3382375792 | G58: 1.5 | H58: -0.5 | I58: ТБ4 | J58: 2 | K58: 3.5 | L58: 1 | M58: 2.5 | N58: 3-2 | O58: 2-2 | P58: 4-4 | Q58: Тургау | R58: ДА | S58: 4.6
A59: Линчеппинг | B59: Фрелунда | C59: Ф2(0) | D59: П2 | E59: 0.3117535582 | F59: 0.6882464418 | G59: 1.751190476 | H59: -0.7511904762 | I59: ТБ4 | J59: 1 | K59: 2.5 | L59: 3 | M59: 4.5 | N59: 2-3 | O59: 2-3 | P59: 3-5 | Q59: Фрелунда | R59: ДА | S59: 5.102380952

Sheet обработка (hidden)
S1: =P2+P3+P4+P5+P6+P9+P10+P11+P12+P13+P16+P17+P18+P19+P20 -> 43 | T1: =S1+U1 -> 78 | U1: =Q2+Q3+Q4+Q5+Q6+Q9+Q10+Q11+Q12+Q13+Q16+Q17+Q18+Q19+Q20 -> 35
A2: 21.10.18 | B2: SHL | C2: Линчеппинг | D2: Шеллефтео | E2: 1 : 1 | I2: =E2 -> 1 : 1 | K2: =SUBSTITUTE(I2,CHAR(58)," : ") -> 1 : 1 | M2: =LEFT(K2,LEN(K2)-FIND(":",K2)-1) -> 1 | N2: =RIGHT(K2,LEN(K2)-FIND(":",K2)-1) -> 1 | P2: =TRIM(M2) -> 1 | Q2: =TRIM(N2) -> 1 | S2: =T1 -> 78 | U2: =S2/15 -> 5.2
A3: 11.10.18 | B3: SHL | C3: Линчеппинг | D3: Тимре | E3: 4 : 2 | I3: =E3 -> 4 : 2 | K3: =SUBSTITUTE(I3,CHAR(58)," : ") -> 4 : 2 | M3: 4 | N3: 2 | P3: =TRIM(M3) -> 4 | Q3: 2
A4: 06.10.18 | B4: SHL | C4: Ферьестад | D4: Линчеппинг | E4: 3 : 0 | I4: 3 : 0 | K4: 3 : 0 | M4: 3 | N4: 0 | P4: 3 | Q4: 0
A5: 04.10.18 | B5: SHL | C5: Линчеппинг | D5: Мора | E5: 7 : 4 | I5: 7 : 4 | K5: 7 : 4 | M5: 7 | N5: 4 | P5: 7 | Q5: 4
A6: 02.10.18 | B6: SHL | C6: Линчеппинг | D6: Брюнес | E6: 4 : 0 | I6: 4 : 0 | K6: 4 : 0 | M6: 4 | N6: 0 | P6: 4 | Q6: 0
A9: 20.10.18 | B9: SHL | C9: Фрелунда | D9: ХВ-71 | E9: 4 : 1 | I9: =E9 -> 4 : 1 | K9: 4 : 1 | M9: 4 | N9: 1 | P9: 4 | Q9: 1
A10: 18.10.18 | B10: SHL | C10: Фрелунда | D10: Лулео | E10: 1 : 5 | I10: =E10 -> 1 : 5 | K10: 1 : 5 | M10: 1 | N10: 5 | P10: 1 | Q10: 5
A11: 16.10.18 | B11: ЛЧ | C11: Ольборг | D11: Фрелунда | E11: 1 : 5 | I11: 1 : 5 | K11: 1 : 5 | M11: 1 | N11: 5 | P11: 1 | Q11: 5
A12: 13.10.18 | B12: SHL | C12: Ферьестад | D12: Фрелунда | E12: 3 : 4 | I12: 3 : 4 | K12: 3 : 4 | M12: 3 | N12: 4 | P12: 3 | Q12: 4
A13: 11.10.18 | B13: SHL | C13: Лулео | D13: Фрелунда | E13: 2 : 3 | I13: 2 : 3 | K13: 2 : 3 | M13: 2 | N13: 3 | P13: 2 | Q13: 3 | S13: =RIGHT(A1,LEN(A1)-FIND(":",A1)) ->  | U13: =RIGHT(A8,LEN(A8)-FIND(":",A8)) ->  | W13: =U2 -> 5.2
S14: =IFERROR(S13,"команда-1") -> команда-1 | U14: =IFERROR(U13,"команда-2") -> команда-2 | W14: =W13 -> 5.2
A16: 19.12.17 | B16: SHL | C16: Линчеппинг | D16: Фрелунда | E16: 0 : 2 | I16: =E16 -> 0 : 2 | K16: 0 : 2 | M16: 0 | N16: 2 | P16: 0 | Q16: 2
A17: 25.11.17 | B17: SHL | C17: Фрелунда | D17: Линчеппинг | E17: 5 : 1 | I17: =E17 -> 5 : 1 | K17: 5 : 1 | M17: 5 | N17: 1 | P17: 5 | Q17: 1
A18: 28.10.17 | B18: SHL | C18: Фрелунда | D18: Линчеппинг | E18: 4 : 0 | I18: 4 : 0 | K18: 4 : 0 | M18: 4 | N18: 0 | P18: 4 | Q18: 0
A19: 14.10.17 | B19: SHL | C19: Линчеппинг | D19: Фрелунда | E19: 2 : 3 | I19: 2 : 3 | K19: 2 : 3 | M19: 2 | N19: 3 | P19: 2 | Q19: 3
A20: 09.03.17 | B20: SHL | C20: Линчеппинг | D20: Фрелунда | E20: 2 : 4 | I20: 2 : 4 | K20: 2 : 4 | M20: 2 | N20: 4 | P20: 2 | Q20: 4 | S20: ГАМБУРГ | U20: АУГСБЮРГЕР | W20: 6.2
R23: 1 | S23: =P2+Q2+P9+Q9+P16+Q16 -> 9 | T23: =S23/3 -> 3 | U23: 5
R24: 2 | S24: =P2+Q2+P3+Q3+P9+Q9+P10+Q10+P16+Q16+P17+Q17 -> 27 | T24: =S24/6 -> 4.5
R25: 3 | S25: =P2+Q2+P3+Q3+P4+Q4+P9+Q9+P10+Q10+P11+Q11+P16+Q16+P17+Q17+P18+Q18 -> 40 | T25: =S25/9 -> 4.444444444
R26: 4 | S26: =P2+Q2+P3+Q3+P4+Q4+P5+Q5+P9+Q9+P10+Q10+P11+Q11+P12+Q12+P16+Q16+P17+Q17+P18+Q18+P19+Q19 -> 63 | T26: =S26/12 -> 5.25
R27: 5 | S27: =T1 -> 78 | T27: =S27/15 -> 5.2

Sheet тест (hidden)

Sheet Данные
A1: Последние игры: Таиланд
A2: 19.11.16 | C2: Таиланд | D2: Индонезия | E2: 4 : 2
A3: 15.11.16 | C3: Таиланд | D3: Австралия | E3: 2 : 2
A4: 11.10.16 | C4: Ирак | D4: Таиланд | E4: 4 : 0
A5: 06.10.16 | C5: ОАЭ | D5: Таиланд | E5: 3 : 1
A6: 06.09.16 | C6: Таиланд | D6: Япония | E6: 0 : 2
A8: Последние игры: Сингапур
A9: 19.11.16 | C9: Филиппины | D9: Сингапур | E9: 0 : 0
A10: 13.11.16 | C10: Сингапур | D10: Камбоджа | E10: 1 : 0
A11: 09.11.16 | C11: Сирия | D11: Сингапур | E11: 2 : 0
A12: 11.10.16 | C12: Гонконг | D12: Сингапур | E12: 2 : 0
A13: 07.10.16 | C13: Сингапур | D13: Малайзия | E13: 0 : 0
A16: 26.03.15 | C16: Таиланд | D16: Сингапур | E16: 2 : 0
A17: 23.11.14 | C17: Сингапур | D17: Таиланд | E17: 1 : 2
A18: 22.12.12 | C18: Таиланд | D18: Сингапур | E18: 1 : 0
A19: 19.12.12 | C19: Сингапур | D19: Таиланд | E19: 3 : 1
A20: 24.08.11 | C20: Таиланд | D20: Сингапур | E20: 0 : 0
A21: Последние игры: Индонезия
A22: 19.11.16 | C22: Таиланд | D22: Индонезия | E22: 4 : 2
A23: 08.11.16 | C23: Вьетнам | D23: Индонезия | E23: 3 : 2
A24: 04.11.16 | C24: Мьянма | D24: Индонезия | E24: 0 : 0
A25: 09.10.16 | C25: Индонезия | D25: Вьетнам | E25: 2 : 2
A26: 06.09.16 | C26: Индонезия | D26: Малайзия | E26: 3 : 0
A28: Последние игры: Филиппины
A29: 19.11.16 | C29: Филиппины | D29: Сингапур | E29: 0 : 0
A30: 09.11.16 | C30: Филиппины | D30: Киргизия | E30: 1 : 0
A31: 10.10.16 | C31: Филиппины | D31: Северная Корея | E31: 1 : 3
A32: 07.10.16 | C32: Филиппины | D32: Бахрейн | E32: 1 : 3
A33: 06.09.16 | C33: Киргизия | D33: Филиппины | E33: 1 : 2
A36: 25.11.14 | C36: Филиппины | D36: Индонезия | E36: 4 : 0
A37: 14.08.13 | C37: Индонезия | D37: Филиппины | E37: 2 : 0
A38: 05.06.12 | C38: Филиппины | D38: Индонезия | E38: 2 : 2
A39: 19.12.10 | C39: Индонезия | D39: Филиппины | E39: 1 : 0
A40: 16.12.10 | C40: Филиппины | D40: Индонезия | E40: 0 : 1
A41: Последние игры: Бредфорд Сити
A42: 19.11.16 | C42: Саутенд Юнайтед | D42: Бредфорд Сити | E42: 3 : 0
A43: 12.11.16 | C43: Бредфорд Сити | D43: Рочдейл | E43: 4 : 0
A44: 09.11.16 | C44: Морекамб | D44: Бредфорд Сити | E44: 3 : 2
A45: 05.11.16 | C45: Бредфорд Сити | D45: Аккрингтон | E45: 1 : 2
A46: 29.10.16 | C46: Уимблдон | D46: Бредфорд Сити | E46: 2 : 3
A48: Последние игры: Нортхэмптон
A49: 19.11.16 | C49: Нортхэмптон | D49: Петерборо Юнайтед | E49: 0 : 1
A50: 12.11.16 | C50: Гиллингем | D50: Нортхэмптон | E50: 2 : 1
A51: 08.11.16 | C51: Нортхэмптон | D51: Вест Хэм U23 | E51: 1 : 2
A52: 05.11.16 | C52: Нортхэмптон | D52: Харроу Боро | E52: 6 : 0
A53: 29.10.16 | C53: Нортхэмптон | D53: Бьюри | E53: 3 : 2
A56: 18.05.13 | C56: Бредфорд Сити | D56: Нортхэмптон | E56: 3 : 0
A57: 06.04.13 | C57: Бредфорд Сити | D57: Нортхэмптон | E57: 1 : 0
A58: 13.11.12 | C58: Бредфорд Сити | D58: Нортхэмптон | E58: 4 : 3
A59: 03.11.12 | C59: Нортхэмптон | D59: Бредфорд Сити | E59: 1 : 1
A60: 23.10.12 | C60: Нортхэмптон | D60: Бредфорд Сити | E60: 0 : 1
A61: Последние игры: МК Донс
A62: 19.11.16 | C62: Бристоль Роверс | D62: МК Донс | E62: 0 : 0
A63: 12.11.16 | C63: МК Донс | D63: Уоллсол | E63: 1 : 1
A64: 08.11.16 | C64: Норвич U23 | D64: МК Донс | E64: 4 : 1
A65: 05.11.16 | C65: МК Донс | D65: Спеннимур | E65: 3 : 2
A66: 29.10.16 | C66: Шеффилд Юнайтед | D66: МК Донс | E66: 2 : 1
A68: Последние игры: Честерфилд
A69: 19.11.16 | C69: Флитвуд | D69: Честерфилд | E69: 2 : 1
A70: 13.11.16 | C70: Честерфилд | D70: Шеффилд Юнайтед | E70: 1 : 4
A71: 08.11.16 | C71: Крю | D71: Честерфилд | E71: 0 : 2
A72: 05.11.16 | C72: Колчестер Юнайтед | D72: Честерфилд | E72: 1 : 2
A73: 01.11.16 | C73: Ковентри Сити | D73: Честерфилд | E73: 2 : 0
A76: 03.03.15 | C76: МК Донс | D76: Честерфилд | E76: 1 : 2
A77: 02.01.15 | C77: МК Донс | D77: Честерфилд | E77: 0 : 1
A78: 06.12.14 | C78: МК Донс | D78: Честерфилд | E78: 0 : 1
A79: 19.08.14 | C79: Честерфилд | D79: МК Донс | E79: 0 : 1
A80: 17.03.12 | C80: Честерфилд | D80: МК Донс | E80: 1 : 1
A81: Последние игры: Оксфорд Юнайтед
A82: 19.11.16 | C82: Оксфорд Юнайтед | D82: Ковентри Сити | E82: 4 : 1
A83: 12.11.16 | C83: Шрусбери Таун | D83: Оксфорд Юнайтед | E83: 2 : 0
A84: 08.11.16 | C84: Челси U23 | D84: Оксфорд Юнайтед | E84: 2 : 1
A85: 05.11.16 | C85: Мерстам | D85: Оксфорд Юнайтед | E85: 0 : 5
A86: 29.10.16 | C86: Оксфорд Юнайтед | D86: Миллуол | E86: 1 : 2
A88: Последние игры: Гиллингем
A89: 19.11.16 | C89: Уоллсол | D89: Гиллингем | E89: 1 : 2
A90: 16.11.16 | C90: Бракли | D90: Гиллингем | E90: 4 : 3
A91: 12.11.16 | C91: Гиллингем | D91: Нортхэмптон | E91: 2 : 1
A92: 08.11.16 | C92: Вест Бромвич U23 | D92: Гиллингем | E92: 0 : 2
A93: 05.11.16 | C93: Гиллингем | D93: Бракли | E93: 2 : 2
A96: 26.02.13 | C96: Гиллингем | D96: Оксфорд Юнайтед | E96: 0 : 1
A97: 06.10.12 | C97: Оксфорд Юнайтед | D97: Гиллингем | E97: 0 : 0
A98: 14.04.12 | C98: Оксфорд Юнайтед | D98: Гиллингем | E98: 0 : 0
A99: 22.10.11 | C99: Гиллингем | D99: Оксфорд Юнайтед | E99: 1 : 0
A100: 05.02.11 | C100: Гиллингем | D100: Оксфорд Юнайтед | E100: 0 : 0
A101: Последние игры: Петерборо Юнайтед
A102: 19.11.16 | C102: Нортхэмптон | D102: Петерборо Юнайтед | E102: 0 : 1
A103: 13.11.16 | C103: Петерборо Юнайтед | D103: Болтон | E103: 1 : 0
A104: 08.11.16 | C104: Барнет | D104: Петерборо Юнайтед | E104: 1 : 2
A105: 05.11.16 | C105: Петерборо Юнайтед | D105: Чешам | E105: 2 : 1
A106: 29.10.16 | C106: Бристоль Роверс | D106: Петерборо Юнайтед | E106: 1 : 2
A108: Последние игры: Сканторп Юнайтед
A109: 19.11.16 | C109: Сканторп Юнайтед | D109: Олдхэм | E109: 1 : 0
A110: 12.11.16 | C110: Ковентри Сити | D110: Сканторп Юнайтед | E110: 0 : 1
A111: 08.11.16 | C111: Кембридж Юнайтед | D111: Сканторп Юнайтед | E111: 0 : 2
A112: 05.11.16 | C112: Чарльтон | D112: Сканторп Юнайтед | E112: 3 : 1
A113: 29.10.16 | C113: Сканторп Юнайтед | D113: Свиндон Таун | E113: 4 : 1
A116: 23.04.16 | C116: Петерборо Юнайтед | D116: Сканторп Юнайтед | E116: 0 : 2
A117: 28.11.15 | C117: Сканторп Юнайтед | D117: Петерборо Юнайтед | E117: 0 : 4
A118: 03.04.15 | C118: Сканторп Юнайтед | D118: Петерборо Юнайтед | E118: 2 : 0
A119: 01.11.14 | C119: Петерборо Юнайтед | D119: Сканторп Юнайтед | E119: 1 : 2
A120: 23.03.10 | C120: Сканторп Юнайтед | D120: Петерборо Юнайтед | E120: 4 : 0
A121: Последние игры: Порт Вэйл
A122: 19.11.16 | C122: Чарльтон | D122: Порт Вэйл | E122: 2 : 0
A123: 12.11.16 | C123: Порт Вэйл | D123: Флитвуд | E123: 2 : 1
A124: 08.11.16 | C124: Донкастер | D124: Порт Вэйл | E124: 0 : 1
A125: 05.11.16 | C125: Порт Вэйл | D125: Стивенейдж | E125: 1 : 0
A126: 29.10.16 | C126: Болтон | D126: Порт Вэйл | E126: 3 : 1
A128: Последние игры: Олдхэм
A129: 19.11.16 | C129: Сканторп Юнайтед | D129: Олдхэм | E129: 1 : 0
A130: 12.11.16 | C130: Олдхэм | D130: Уимблдон | E130: 0 : 0
A131: 08.11.16 | C131: Блэкберн U23 | D131: Олдхэм | E131: 2 : 3
A132: 05.11.16 | C132: Олдхэм | D132: Донкастер | E132: 2 : 1
A133: 29.10.16 | C133: Рочдейл | D133: Олдхэм | E133: 1 : 0
A136: 01.03.16 | C136: Олдхэм | D136: Порт Вэйл | E136: 1 : 1
A137: 29.09.15 | C137: Порт Вэйл | D137: Олдхэм | E137: 1 : 1
A138: 03.03.15 | C138: Порт Вэйл | D138: Олдхэм | E138: 0 : 1
A139: 19.08.14 | C139: Олдхэм | D139: Порт Вэйл | E139: 1 : 1
A140: 18.01.14 | C140: Порт Вэйл | D140: Олдхэм | E140: 1 : 0
A141: Последние игры: Рочдейл
A142: 19.11.16 | C142: Рочдейл | D142: Свиндон Таун | E142: 4 : 0
A143: 15.11.16 | C143: Рочдейл | D143: Мэйдстоун | E143: 2 : 0
A144: 12.11.16 | C144: Бредфорд Сити | D144: Рочдейл | E144: 4 : 0
A145: 09.11.16 | C145: Хартлпул Юнайтед | D145: Рочдейл | E145: 1 : 2
A146: 06.11.16 | C146: Мэйдстоун | D146: Рочдейл | E146: 1 : 1
A148: Последние игры: Уоллсол
A149: 19.11.16 | C149: Уоллсол | D149: Гиллингем | E149: 1 : 2
A150: 12.11.16 | C150: МК Донс | D150: Уоллсол | E150: 1 : 1
A151: 08.11.16 | C151: Лестер U23 | D151: Уоллсол | E151: 0 : 1
A152: 05.11.16 | C152: Уоллсол | D152: Маклсфилд | E152: 0 : 1
A153: 29.10.16 | C153: Уоллсол | D153: Ковентри Сити | E153: 1 : 1
A156: 02.01.16 | C156: Уоллсол | D156: Рочдейл | E156: 0 : 3
A157: 18.08.15 | C157: Рочдейл | D157: Уоллсол | E157: 1 : 2
A158: 10.02.15 | C158: Уоллсол | D158: Рочдейл | E158: 3 : 2
A159: 07.10.14 | C159: Рочдейл | D159: Уоллсол | E159: 0 : 1
A160: 16.09.14 | C160: Рочдейл | D160: Уоллсол | E160: 4 : 0
A161: Последние игры: Саутенд Юнайтед
A162: 19.11.16 | C162: Саутенд Юнайтед | D162: Бредфорд Сити | E162: 3 : 0
A163: 12.11.16 | C163: Бьюри | D163: Саутенд Юнайтед | E163: 1 : 4
A164: 08.11.16 | C164: Стивенейдж | D164: Саутенд Юнайтед | E164: 4 : 0
A165: 04.11.16 | C165: Миллуол | D165: Саутенд Юнайтед | E165: 1 : 0
A166: 29.10.16 | C166: Саутенд Юнайтед | D166: Шрусбери Таун | E166: 1 : 1
A168: Последние игры: Свиндон Таун
A169: 19.11.16 | C169: Рочдейл | D169: Свиндон Таун | E169: 4 : 0
A170: 15.11.16 | C170: Свиндон Таун | D170: Истли | E170: 1 : 3
A171: 12.11.16 | C171: Свиндон Таун | D171: Чарльтон | E171: 3 : 0
A172: 08.11.16 | C172: Эксетер Сити | D172: Свиндон Таун | E172: 1 : 2
A173: 04.11.16 | C173: Истли | D173: Свиндон Таун | E173: 1 : 1
A176: 09.01.16 | C176: Свиндон Таун | D176: Саутенд Юнайтед | E176: 4 : 2
A177: 22.08.15 | C177: Саутенд Юнайтед | D177: Свиндон Таун | E177: 0 : 1
A178: 31.01.12 | C178: Саутенд Юнайтед | D178: Свиндон Таун | E178: 1 : 4
A179: 06.12.11 | C179: Саутенд Юнайтед | D179: Свиндон Таун | E179: 1 : 2
A180: 10.09.11 | C180: Свиндон Таун | D180: Саутенд Юнайтед | E180: 2 : 0
A181: Последние игры: Шеффилд Юнайтед
A182: 19.11.16 | C182: Шеффилд Юнайтед | D182: Шрусбери Таун | E182: 2 : 1
A183: 13.11.16 | C183: Честерфилд | D183: Шеффилд Юнайтед | E183: 1 : 4
A184: 09.11.16 | C184: Гримсби Таун | D184: Шеффилд Юнайтед | E184: 2 : 4
A185: 06.11.16 | C185: Шеффилд Юнайтед | D185: Лейтон Ориент | E185: 6 : 0
A186: 29.10.16 | C186: Шеффилд Юнайтед | D186: МК Донс | E186: 2 : 1
A188: Последние игры: Бьюри
A189: 19.11.16 | C189: Уимблдон | D189: Бьюри | E189: 5 : 1
A190: 15.11.16 | C190: Уимблдон | D190: Бьюри | E190: 5 : 0
A191: 12.11.16 | C191: Бьюри | D191: Саутенд Юнайтед | E191: 1 : 4
A192: 08.11.16 | C192: Сток Сити U23 | D192: Бьюри | E192: 2 : 1
A193: 05.11.16 | C193: Бьюри | D193: Уимблдон | E193: 2 : 2
A196: 16.02.16 | C196: Бьюри | D196: Шеффилд Юнайтед | E196: 1 : 0
A197: 12.09.15 | C197: Шеффилд Юнайтед | D197: Бьюри | E197: 1 : 3
A198: 13.07.13 | C198: Бьюри | D198: Шеффилд Юнайтед | E198: 1 : 3
A199: 12.02.13 | C199: Бьюри | D199: Шеффилд Юнайтед | E199: 0 : 2
A200: 15.09.12 | C200: Шеффилд Юнайтед | D200: Бьюри | E200: 1 : 1
A201: Последние игры: Гримсби Таун
A202: 19.11.16 | C202: Плимут | D202: Гримсби Таун | E202: 0 : 3
A203: 12.11.16 | C203: Гримсби Таун | D203: Барнет | E203: 2 : 2
A204: 09.11.16 | C204: Гримсби Таун | D204: Шеффилд Юнайтед | E204: 2 : 4
A205: 05.11.16 | C205: Болтон | D205: Гримсби Таун | E205: 1 : 0
A206: 29.10.16 | C206: Йовил | D206: Гримсби Таун | E206: 0 : 0
A208: Последние игры: Карлайл Юнайтед
A209: 19.11.16 | C209: Карлайл Юнайтед | D209: Эксетер Сити | E209: 3 : 2
A210: 12.11.16 | C210: Ньюпорт | D210: Карлайл Юнайтед | E210: 2 : 0
A211: 09.11.16 | C211: Карлайл Юнайтед | D211: Флитвуд | E211: 4 : 2
A212: 06.11.16 | C212: Ст. Албанс | D212: Карлайл Юнайтед | E212: 3 : 5
A213: 29.10.16 | C213: Карлайл Юнайтед | D213: Кроули Таун | E213: 3 : 1
A216: 20.11.07 | C216: Гримсби Таун | D216: Карлайл Юнайтед | E216: 1 : 0
A217: 10.11.07 | C217: Карлайл Юнайтед | D217: Гримсби Таун | E217: 1 : 1
A218: 08.04.06 | C218: Карлайл Юнайтед | D218: Гримсби Таун | E218: 1 : 0
A219: 02.01.06 | C219: Гримсби Таун | D219: Карлайл Юнайтед | E219: 1 : 2
A220: 28.09.04 | C220: Карлайл Юнайтед | D220: Гримсби Таун | E220: 2 : 1
A221: Последние игры: Йовил
A222: 19.11.16 | C222: Йовил | D222: Колчестер Юнайтед | E222: 2 : 1
A223: 15.11.16 | C223: Солихалл | D223: Йовил | E223: 2 : 1
A224: 12.11.16 | C224: Стивенейдж | D224: Йовил | E224: 2 : 2
A225: 09.11.16 | C225: Рединг U23 | D225: Йовил | E225: 0 : 2
A226: 05.11.16 | C226: Йовил | D226: Солихалл | E226: 2 : 2
A228: Последние игры: Кроули Таун
A229: 19.11.16 | C229: Мансфилд Таун | D229: Кроули Таун | E229: 3 : 1
A230: 15.11.16 | C230: Бристоль Роверс | D230: Кроули Таун | E230: 4 : 2
A231: 12.11.16 | C231: Кроули Таун | D231: Кембридж Юнайтед | E231: 1 : 3
A232: 09.11.16 | C232: Саутгемптон U23 | D232: Кроули Таун | E232: 4 : 0
A233: 05.11.16 | C233: Кроули Таун | D233: Бристоль Роверс | E233: 1 : 1
A236: 23.01.16 | C236: Йовил | D236: Кроули Таун | E236: 2 : 1
... 718 more rows

Sheet settings (hidden)
A1: GMT +0 | B1: 4 | C1: =TODAY()-7 -> 2019-08-30 | D1: 8 | E1: soccerstand.com | F1: 1
A2: GMT +1 | C2: =TODAY()-6 -> 2019-08-31 | E2: flashscore.com
A3: GMT +2 | C3: =TODAY()-5 -> 2019-09-01 | E3: myscore.ru
A4: GMT +3 | C4: =TODAY()-4 -> 2019-09-02 | E4: myscore.com.ua
A5: GMT +4 | C5: =TODAY()-3 -> 2019-09-03
A6: GMT +5 | C6: =TODAY()-2 -> 2019-09-04
A7: GMT +6 | C7: Вчера
A8: GMT +7 | C8: Сегодня
A9: GMT +8 | C9: Завтра
A10: GMT +9 | C10: =TODAY()+2 -> 2019-09-08
A11: GMT +10 | C11: =TODAY()+3 -> 2019-09-09
A12: GMT +11 | C12: =TODAY()+4 -> 2019-09-10
A13: GMT +12 | C13: =TODAY()+5 -> 2019-09-11
A14: GMT +13 | C14: =TODAY()+6 -> 2019-09-12
C15: =TODAY()+7 -> 2019-09-13

Sheet Прогноз (hidden)
D1: Прогнозируемые команды: | G1: =($F9+$F13)/2 -> 0.3117535582 | H1: (Хозяева) | I1: ='Команда 1'!A3 -> Линчеппинг | K1: VS | L1: ='Команда 2'!A3 -> Фрелунда | N1: (Гости) | O1: =($G9+$G13)/2 -> 0.6882464418
D2: ПРОГНОЗЫ | J2: СТАТИСТИКА
A3: Результат из ТС (риск) | C3: Рисковый точный счет (редко) | E3: Обе забьют | H3: Сколько могут забить | K3: Команды | L3: Статистика голов в среднем
E4: =IF(С5!C25="ДА","ДА",IF(B19>=1,IF(B20>=1,"ДА","НЕТ"),"НЕТ")) -> ДА | H4: =С1!Q11 -> 5.102380952 | L4: Забили/Пропустили
K5: =I1 -> Линчеппинг | L5: =CONCATENATE(ROUND(С1!I6,2),"/ ",ROUND(С1!E6,2)) -> 2,86/ 2,8
A6: =IF(С1!T25+С1!T26+С1!T27=6,"П1",IF(С1!T25+С1!T26+С1!T27=5,"Ф1(0)",IF(С1!T25+С1!T26+С1!T27=4,"1Х",IF(С1!T25+С1!T26+С1!T27=3,"Х",IF(С1!T25+С1!T26+С1!T27=2,"Х2",IF(С1!T25+С1!T26+С1!T27=1,"Ф2(0)","П2")))))) -> П2 | C6: =CONCATENATE(С1!X24," : ",С1!Y24) -> - : - | E6: Сила по голам | F6: =K5 -> Линчеппинг | G6: =K6 -> Фрелунда | H6: Исход по голам | K6: =L1 -> Фрелунда | L6: =CONCATENATE(ROUND(С1!B7,2),"/",ROUND(С1!E7,2)) -> 3,5/1,7
E7: Общая | F7: =(С1!$B6/С1!$E6)*100 -> 75 | G7: =(С1!$B7/С1!$E7)*100 -> 205.8823529 | H7: =IF(G9>=85%,"П2",IF(G9>=65%,"Ф2(0)",IF(G9>=51%,"X2",IF(F9>=85%,"П1",IF(F9>=65%,"Ф1(0)",IF(F9>=51%,"1Х","Х")))))) -> Ф2(0)
E8: Дома/В гостях | F8: =(С1!I6/С1!L6)*100 -> 125 | G8: =(С1!O7/С1!R7)*100 -> 210 | K8: Команды | L8: Общий проход ТБ 2,5 | N8: Серия 5 последних игр
A9: Уверенный исход | C9: Уверенный тотал | E9: Успех | F9: =($F7+$F8)/($F$7+$F$8+$G$7+$G$8) -> 0.3247373448 | G9: =($G7+$G8)/($F$7+$F$8+$G$7+$G$8) -> 0.6752626552 | K9: =I1 -> Линчеппинг | L9: =С6!E29 -> - + + + + | N9: =С1!H21 -> Н В П В В
E10: Сила по очкам | H10: Исход по очкам | K10: =L1 -> Фрелунда | L10: =С6!E30 -> + + + + + | N10: =С1!I21 -> В П В В В
E11: Общая | F11: =(С1!H3/С1!B3)*100 -> 100 | G11: =(С1!H4/С1!B4)*100 -> 270 | H11: =IF(G13>=85%,"П2",IF(G13>=65%,"Ф2(0)",IF(G13>=51%,"X2",IF(F13>=85%,"П1",IF(F13>=65%,"Ф1(0)",IF(F13>=51%,"1Х","Х")))))) -> Ф2(0)
A12: =IF(O1>=81%,"П2",IF(O1>=65%,"Ф2(0)",IF(O1>=51%,"X2",IF(G1>=81%,"П1",IF(G1>=65%,"Ф1(0)",IF(G1>=51%,"1Х","Х")))))) -> Ф2(0) | C12: =IF(С1!S31<1.95,"ТМ5,5",IF(С1!S31<=2.39,"ТМ6",IF(С1!S31>=2.8,"ТБ4",IF(С1!S31>=3.15,"ТБ4,5)","ТБ3,5")))) -> ТБ4 | E12: Дома/В гостях | F12: =(С1!$O3/С1!$I3)*100 -> 142.8571429 | G12: =(С1!V4/С1!P4)*100 -> 300 | K12: Статистика: | M12: W/D/L | N12: Заб/Проп
E13: Успех | F13: =($F11+$F12)/($F$11+$F$12+$G$11+$G$12) -> 0.2987697715 | G13: =($G11+$G12)/($F$11+$F$12+$G$11+$G$12) -> 0.7012302285 | K13: =I1 -> Линчеппинг | L13: Дома | M13: =С1!AE19 -> 3/1/3 | N13: =С1!AF19 -> 20/16
K14: =L1 -> Фрелунда | L14: В гостях | M14: =С1!AG20 -> 6/0/0 | N14: =С1!AH20 -> 21/10
A15: Первым забьет | B15: =С1!F25 -> Фрелунда | E15: Общий тотал | H15: Тоталы в процентах
E16: ТОТАЛ БОЛЬШЕ | F16: ТОТАЛ МЕНЬШЕ | H16: ТБ 2,5 % | I16: =IF(С1!S31<1.95,1.95-H4*(25/0.7),IF(С1!S31<=2.55,25+(2.55-H4)*(35/0.7),IF(С1!S31>=2.8,60+(H4-2.8)*(15/0.3),IF(С1!S31>=3.15,75+(H4-3.15)*(25/0.7),50+(H4-2.65)*(10/0.2))))) -> 175.1190476 | K16: Команды | L16: Все матчи W/D/L | N16: Все голы Заб/Проп
E17: =С1!A30 -> 3.5 | F17: =С1!C30 -> 6.5 | H17: ТМ 2,5 % | I17: =100-I16 -> -75.11904762 | K17: =I1 -> Линчеппинг | L17: =С1!AC19 -> 3/1/6 | N17: =С1!AD19 -> 21/28
A18: ИНД.ТОТАЛ | B18: ТОТАЛ БОЛЬШЕ | C18: ТОТАЛ МЕНЬШЕ | K18: =L1 -> Фрелунда | L18: =С1!AC20 -> 9/0/1 | N18: =С1!AD20 -> 35/17
A19: =I1 -> Линчеппинг | B19: =С1!A34 -> 1 | C19: =С1!C34 -> 2.5 | E19: Средний точный счет(риск)
A20: =L1 -> Фрелунда | B20: =С1!A38 -> 3 | C20: =С1!C38 -> 4.5 | E20: =AVERAGE(B23,B25,B27) -> 2.333333333 | F20: =AVERAGE(Прогноз!C23,Прогноз!C25,Прогноз!C27) -> 3.666666667
A21: РИСК
A22: Возможные точные счета по разным методам
A23: №1 | B23: =IF(С1!Q16<=0,0,С1!Q16) -> 2 | C23: =IF(С1!R16<=0,0,С1!R16) -> 3 | D23: МЕТОД СТАТИСТИКИ | F23: Метод Таблицы (Опасно) | H23: Т. Синдиката и Altadar(Опасно)
A25: №2 | B25: =IF(С2!B7<=0,0,С2!B7) -> 2 | C25: =IF(С2!C7<=0,0,С2!C7) -> 3 | D25: МЕТОД ПРОРОК | F25: =С1!P21 -> П2 | H25: =С7!T12 -> П2
A27: №3 | B27: =IF(С3!K4<=0,0,С3!K4) -> 3 | C27: =IF(С3!K8<=0,0,С3!K8) -> 5 | D27: МЕТОД МИЛЛЕРА

Sheet Команда 1 (hidden)
A1: Команда 1 (ХОЗЯЕВА)
A2: Дата | B2: Лига | C2: Хозяева | D2: Гости | E2: Счёт | V2: Всего | AC2: Дома | AJ2: В гостях | AQ2: Забивают дома | AU2: Забивают в гостях
A3: =F3 -> Линчеппинг | F3: =IF(COUNTIF(C4:D13,C4)>COUNTIF(C4:D13,D4),C4,D4) -> Линчеппинг | G3: Заб | H3: Проп | I3: Рез | J3: Турнир | K3: Дом | L3: Гость | M3: Счёт | N3: Команда1 | O3: Команда2 | P3: Голы1 | Q3: Голы2 | R3: Где играла | S3: Результат | T3: Забито | U3: Пропущено | V3: Игр | W3: В | X3: Н | Y3: П | Z3: Забито | AA3: Пропущено | AB3: Очки | AC3: Игр | AD3: В | AE3: Н | AF3: П | AG3: Забито | AH3: Пропущено | AI3: Очки | AJ3: Игр | AK3: В | AL3: Н | AM3: П | AN3: Забито | AO3: Пропущено | AP3: Очки | AQ3: 0 | AR3: 1 | AS3: 2 | AT3: 3+ | AU3: 0 | AV3: 1 | AW3: 2 | AX3: 3+ | AY3: Забивают | AZ3: Пропускают | BA3: Рейтинг | BB3: тотал | BE3: =A3 -> Линчеппинг
A4: =обработка!A2 -> 21.10.18 | B4: =обработка!B2 -> SHL | C4: =обработка!C2 -> Линчеппинг | D4: =обработка!D2 -> Шеллефтео | E4: =обработка!I2 -> 1 : 1 | G4: =IF(R4="Дома",K4,L4) -> 1 | H4: =IF(R4="Дома",L4,K4) -> 1 | I4: =IF(R4="Дома",IF(K4>L4,"В",IF(K4=L4,"Н","П")),IF(L4>K4,"В",IF(K4=L4,"Н","П"))) -> Н | J4: =B4 -> SHL | K4: =VALUE(LEFT(M4,FIND(":",M4,1)-1)) -> 1 | L4: =VALUE(LEFT(RIGHT(M4,LEN(M4)-FIND(":",M4,1)),1)) -> 1 | M4: =SUBSTITUTE(E4," : ",":") -> 1:1 | N4: =C4 -> Линчеппинг | O4: Шеллефтео | P4: =VALUE(LEFT(M4,FIND(":",M4,1)-1)) -> 1 | Q4: =VALUE(LEFT(RIGHT(M4,LEN(M4)-FIND(":",M4,1)),1)) -> 1 | R4: =IF(C4=A$3,"Дома","В гостях") -> Дома | S4: =I4 -> Н | T4: =G4 -> 1 | U4: 1 | V4: 1 | W4: =IF(S4="В",1,0) -> 0 | X4: =IF(S4="Н",1,0) -> 1 | Y4: =IF(S4="П",1,0) -> 0 | Z4: =T4 -> 1 | AA4: =U4 -> 1 | AB4: =W4*3+X4 -> 1 | AC4: =IF(R4="Дома",1,0) -> 1 | AD4: =IF(R4="Дома",IF(S4="В",1,0),0) -> 0 | AE4: =IF(R4="Дома",IF(S4="Н",1,0),0) -> 1 | AF4: =IF(R4="Дома",IF(S4="П",1,0),0) -> 0 | AG4: =IF(R4="Дома",T4,0) -> 1 | AH4: =IF(R4="Дома",U4,0) -> 1 | AI4: =AD4*3+AE4 -> 1 | AJ4: =IF(R4<>"Дома",1,0) -> 0 | AK4: =IF(R4<>"Дома",IF(S4="В",1,0),0) -> 0 | AL4: =IF(R4<>"Дома",IF(S4="Н",1,0),0) -> 0 | AM4: =IF(R4<>"Дома",IF(S4="П",1,0),0) -> 0 | AN4: =IF(R4<>"Дома",T4,0) -> 0 | AO4: =IF(R4<>"Дома",U4,0) -> 0 | AP4: =AK4*3+AL4 -> 0 | AQ4: =IF(R4="Дома",IF(T4=0,1,0),0) -> 0 | AR4: =IF(R4="Дома",IF(T4=1,1,0),0) -> 1 | AS4: =IF(R4="Дома",IF(T4=2,1,0),0) -> 0 | AT4: =IF(R4="Дома",IF(T4>=3,1,0),0) -> 0 | AU4: =IF(R4<>"Дома",IF(X4=0,1,0),0) -> 0 | AV4: =IF(R4<>"Дома",IF(X4=1,1,0),0) -> 0 | AW4: =IF(R4<>"Дома",IF(X4=2,1,0),0) -> 0 | AX4: =IF(R4<>"Дома",IF(X4>=3,1,0),0) -> 0 | AY4: =V4/Z4 -> 1 | AZ4: =V4/AA4 -> 1 | BA4: =(AI4/IF(AC4<1,1,AC4)+AP4/IF(AJ4<1,1,AJ4)*1.5+AG4/IF(AC4<1,1,AC4)+AN4/IF(AJ4<1,1,AJ4)*1.5-AH4/IF(AC4<1,1,AC4)*1.5-AO4/IF(AJ4<1,1,AJ4))/15 -> 0.03333333333 | BB4: =IF(R4="Дома",T4+U4,"") -> 2 | BD4: =IF(R4="Дома",IF(K4>L4,"В",IF(K4=L4,"Н","П")),IF(L4>K4,"В",IF(K4=L4,"Н","П"))) -> Н | BE4: =IF(R4="Дома",IF(K4>L4,3,IF(K4=L4,1,0)),IF(L4>K4,3,IF(K4=L4,1,0))) -> 1 | BF4: НАБРАННЫЕ ОЧКИ
A5: =обработка!A3 -> 11.10.18 | B5: =обработка!B3 -> SHL | C5: =обработка!C3 -> Линчеппинг | D5: =обработка!D3 -> Тимре | E5: =обработка!I3 -> 4 : 2 | G5: =IF(R5="Дома",K5,L5) -> 4 | H5: =IF(R5="Дома",L5,K5) -> 2 | I5: =IF(R5="Дома",IF(K5>L5,"В",IF(K5=L5,"Н","П")),IF(L5>K5,"В",IF(K5=L5,"Н","П"))) -> В | J5: SHL | K5: =VALUE(LEFT(M5,FIND(":",M5,1)-1)) -> 4 | L5: =VALUE(LEFT(RIGHT(M5,LEN(M5)-FIND(":",M5,1)),1)) -> 2 | M5: 4:2 | N5: Линчеппинг | O5: Тимре | P5: =VALUE(LEFT(M5,FIND(":",M5,1)-1)) -> 4 | Q5: =VALUE(LEFT(RIGHT(M5,LEN(M5)-FIND(":",M5,1)),1)) -> 2 | R5: =IF(C5=A$3,"Дома","В гостях") -> Дома | S5: В | T5: 4 | U5: 2 | V5: =V4+1 -> 2 | W5: =IF(S5="В",W4+1,W4+0) -> 1 | X5: =IF(S5="Н",X4+1,X4+0) -> 1 | Y5: =IF(S5="П",Y4+1,Y4+0) -> 0 | Z5: =T5+Z4 -> 5 | AA5: 3 | AB5: =W5*3+X5 -> 4 | AC5: =IF(R5="Дома",AC4+1,AC4+0) -> 2 | AD5: =IF(R5="Дома",IF(S5="В",AD4+1,AD4+0),AD4+0) -> 1 | AE5: =IF(R5="Дома",IF(S5="Н",AE4+1,AE4+0),AE4+0) -> 1 | AF5: =IF(R5="Дома",IF(S5="П",AF4+1,AF4+0),AF4+0) -> 0 | AG5: =IF(R5="Дома",AG4+T5,AG4+0) -> 5 | AH5: =IF(R5="Дома",AH4+U5,AH4+0) -> 3 | AI5: =AD5*3+AE5 -> 4 | AJ5: =IF(R5<>"Дома",AJ4+1,AJ4+0) -> 0 | AK5: =IF(R5<>"Дома",IF(S5="В",AK4+1,AK4+0),AK4+0) -> 0 | AL5: =IF(R5<>"Дома",IF(S5="Н",AL4+1,AL4+0),AL4+0) -> 0 | AM5: =IF(R5<>"Дома",IF(S5="П",AM4+1,AM4+0),AM4+0) -> 0 | AN5: =IF(R5<>"Дома",AN4+T5,AN4+0) -> 0 | AO5: =IF(R5<>"Дома",AO4+U5,AO4+0) -> 0 | AP5: =AK5*3+AL5 -> 0 | AQ5: =IF(R5="Дома",IF(T5=0,AQ4+1,AQ4),AQ4) -> 0 | AR5: =IF(R5="Дома",IF(T5=1,AR4+1,AR4),AR4) -> 1 | AS5: =IF(R5="Дома",IF(T5=2,AS4+1,AS4),AS4) -> 0 | AT5: =IF(R5="Дома",IF(T5>=3,AT4+1,AT4),AT4) -> 1 | AU5: =IF(R5<>"Дома",IF(T5=0,AU4+1,AU4),AU4) -> 0 | AV5: =IF(R5<>"Дома",IF(T5=1,AV4+1,AV4),AV4) -> 0 | AW5: =IF(R5<>"Дома",IF(T5=2,AW4+1,AW4),AW4) -> 0 | AX5: =IF(R5<>"Дома",IF(T5>=3,AX4+1,AX4),AX4) -> 0 | AY5: =V5/Z5 -> 0.4 | AZ5: =V5/AA5 -> 0.6666666667 | BA5: =(AI5/IF(AC5<1,1,AC5)+AP5/IF(AJ5<1,1,AJ5)*1.5+AG5/IF(AC5<1,1,AC5)+AN5/IF(AJ5<1,1,AJ5)*1.5-AH5/IF(AC5<1,1,AC5)*1.5-AO5/IF(AJ5<1,1,AJ5))/15 -> 0.15 | BB5: =IF(R5="Дома",T5+U5,"") -> 6 | BD5: В | BE5: =IF(R5="Дома",IF(K5>L5,3,IF(K5=L5,1,0)),IF(L5>K5,3,IF(K5=L5,1,0))) -> 3
A6: =обработка!A4 -> 06.10.18 | B6: =обработка!B4 -> SHL | C6: =обработка!C4 -> Ферьестад | D6: =обработка!D4 -> Линчеппинг | E6: =обработка!I4 -> 3 : 0 | G6: 0 | H6: 3 | I6: П | J6: SHL | K6: 3 | L6: 0 | M6: 3:0 | N6: Ферьестад | O6: Линчеппинг | P6: 3 | Q6: 0 | R6: В гостях | S6: П | T6: 0 | U6: 3 | V6: 3 | W6: =IF(S6="В",W5+1,W5+0) -> 1 | X6: 1 | Y6: 1 | Z6: 5 | AA6: 6 | AB6: 4 | AC6: 2 | AD6: 1 | AE6: 1 | AF6: 0 | AG6: 5 | AH6: 3 | AI6: 4 | AJ6: =IF(R6<>"Дома",AJ5+1,AJ5+0) -> 1 | AK6: 0 | AL6: 0 | AM6: 1 | AN6: 0 | AO6: 3 | AP6: 0 | AQ6: =IF(R6="Дома",IF(T6=0,AQ5+1,AQ5),AQ5) -> 0 | AR6: 1 | AS6: 0 | AT6: 1 | AU6: 1 | AV6: 0 | AW6: 0 | AX6: 0 | AY6: 0.6 | AZ6: 0.5 | BA6: -0.05 | BD6: П | BE6: 0
A7: =обработка!A5 -> 04.10.18 | B7: =обработка!B5 -> SHL | C7: =обработка!C5 -> Линчеппинг | D7: =обработка!D5 -> Мора | E7: =обработка!I5 -> 7 : 4 | G7: 7 | H7: 4 | I7: В | J7: SHL | K7: 7 | L7: 4 | M7: 7:4 | N7: Линчеппинг | O7: Мора | P7: 7 | Q7: 4 | R7: Дома | S7: В | T7: 7 | U7: 4 | V7: 4 | W7: 2 | X7: 1 | Y7: 1 | Z7: 12 | AA7: 10 | AB7: 7 | AC7: 3 | AD7: 2 | AE7: 1 | AF7: 0 | AG7: 12 | AH7: 7 | AI7: 7 | AJ7: 1 | AK7: 0 | AL7: 0 | AM7: 1 | AN7: 0 | AO7: 3 | AP7: 0 | AQ7: 0 | AR7: 1 | AS7: 0 | AT7: 2 | AU7: 1 | AV7: 0 | AW7: 0 | AX7: 0 | AY7: 0.3333333333 | AZ7: 0.4 | BA7: -0.01111111111 | BB7: 11 | BD7: В | BE7: 3
A8: =обработка!A6 -> 02.10.18 | B8: =обработка!B6 -> SHL | C8: =обработка!C6 -> Линчеппинг | D8: =обработка!D6 -> Брюнес | E8: =обработка!I6 -> 4 : 0 | G8: 4 | H8: 0 | I8: В | J8: SHL | K8: 4 | L8: 0 | M8: 4:0 | N8: Линчеппинг | O8: Брюнес | P8: 4 | Q8: 0 | R8: Дома | S8: В | T8: 4 | U8: 0 | V8: 5 | W8: 3 | X8: 1 | Y8: 1 | Z8: 16 | AA8: 10 | AB8: 10 | AC8: 4 | AD8: 3 | AE8: 1 | AF8: 0 | AG8: 16 | AH8: 7 | AI8: 10 | AJ8: 1 | AK8: 0 | AL8: 0 | AM8: 1 | AN8: =IF(R8<>"Дома",AN7+T8,AN7+0) -> 0 | AO8: 3 | AP8: 0 | AQ8: 0 | AR8: 1 | AS8: 0 | AT8: 3 | AU8: 1 | AV8: 0 | AW8: 0 | AX8: 0 | AY8: 0.3125 | AZ8: 0.5 | BA8: 0.05833333333 | BB8: 4 | BD8: В | BE8: 3
A9: =обработка!A16 -> 19.12.17 | B9: =обработка!B16 -> SHL | C9: =обработка!C16 -> Линчеппинг | D9: =обработка!D16 -> Фрелунда | E9: =обработка!I16 -> 0 : 2 | G9: 0 | H9: 2 | I9: П | J9: SHL | K9: 0 | L9: 2 | M9: 0:2 | N9: Линчеппинг | O9: Фрелунда | P9: 0 | Q9: 2 | R9: Дома | S9: П | T9: 0 | U9: 2 | V9: 6 | W9: 3 | X9: 1 | Y9: 2 | Z9: 16 | AA9: 12 | AB9: 10 | AC9: 5 | AD9: 3 | AE9: 1 | AF9: 1 | AG9: 16 | AH9: 9 | AI9: 10 | AJ9: 1 | AK9: 0 | AL9: 0 | AM9: 1 | AN9: 0 | AO9: 3 | AP9: 0 | AQ9: 1 | AR9: 1 | AS9: 0 | AT9: 3 | AU9: 1 | AV9: 0 | AW9: 0 | AX9: 0 | AY9: 0.375 | AZ9: 0.5 | BA9: -0.03333333333 | BB9: 2 | BD9: П | BE9: 0
A10: =обработка!A17 -> 25.11.17 | B10: =обработка!B17 -> SHL | C10: =обработка!C17 -> Фрелунда | D10: =обработка!D17 -> Линчеппинг | E10: =обработка!I17 -> 5 : 1 | G10: 1 | H10: 5 | I10: П | J10: SHL | K10: 5 | L10: 1 | M10: 5:1 | N10: Фрелунда | O10: Линчеппинг | P10: 5 | Q10: 1 | R10: В гостях | S10: П | T10: 1 | U10: 5 | V10: 7 | W10: 3 | X10: 1 | Y10: 3 | Z10: 17 | AA10: 17 | AB10: 10 | AC10: 5 | AD10: 3 | AE10: 1 | AF10: 1 | AG10: 16 | AH10: 9 | AI10: 10 | AJ10: 2 | AK10: 0 | AL10: 0 | AM10: 2 | AN10: 1 | AO10: 8 | AP10: 0 | AQ10: 1 | AR10: 1 | AS10: 0 | AT10: 3 | AU10: 1 | AV10: 1 | AW10: 0 | AX10: 0 | AY10: 0.4117647059 | AZ10: 0.4117647059 | BA10: -0.05 | BD10: П | BE10: 0
A11: =обработка!A18 -> 28.10.17 | B11: =обработка!B18 -> SHL | C11: =обработка!C18 -> Фрелунда | D11: =обработка!D18 -> Линчеппинг | E11: =обработка!I18 -> 4 : 0 | G11: 0 | H11: 4 | I11: П | J11: SHL | K11: 4 | L11: 0 | M11: 4:0 | N11: Фрелунда | O11: Линчеппинг | P11: 4 | Q11: 0 | R11: В гостях | S11: П | T11: 0 | U11: 4 | V11: 8 | W11: 3 | X11: 1 | Y11: 4 | Z11: 17 | AA11: 21 | AB11: 10 | AC11: 5 | AD11: 3 | AE11: 1 | AF11: 1 | AG11: =IF(R11="Дома",AG10+T11,AG10+0) -> 16 | AH11: 9 | AI11: 10 | AJ11: 3 | AK11: 0 | AL11: 0 | AM11: 3 | AN11: 1 | AO11: 12 | AP11: 0 | AQ11: 1 | AR11: 1 | AS11: 0 | AT11: 3 | AU11: 2 | AV11: 1 | AW11: 0 | AX11: 0 | AY11: 0.4705882353 | AZ11: 0.380952381 | BA11: -0.06666666667 | BD11: П | BE11: 0
A12: =обработка!A19 -> 14.10.17 | B12: =обработка!B19 -> SHL | C12: =обработка!C19 -> Линчеппинг | D12: =обработка!D19 -> Фрелунда | E12: =обработка!I19 -> 2 : 3 | G12: 2 | H12: 3 | I12: П | J12: SHL | K12: 2 | L12: 3 | M12: 2:3 | N12: Линчеппинг | O12: Фрелунда | P12: 2 | Q12: 3 | R12: Дома | S12: П | T12: 2 | U12: 3 | V12: 9 | W12: 3 | X12: 1 | Y12: 5 | Z12: 19 | AA12: 24 | AB12: 10 | AC12: 6 | AD12: 3 | AE12: 1 | AF12: 2 | AG12: 18 | AH12: 12 | AI12: 10 | AJ12: 3 | AK12: 0 | AL12: 0 | AM12: 3 | AN12: 1 | AO12: 12 | AP12: 0 | AQ12: 1 | AR12: 1 | AS12: 1 | AT12: 3 | AU12: 2 | AV12: 1 | AW12: 0 | AX12: 0 | AY12: 0.4736842105 | AZ12: 0.375 | BA12: -0.1222222222 | BB12: 5 | BD12: П | BE12: 0
A13: =обработка!A20 -> 09.03.17 | B13: =обработка!B20 -> SHL | C13: =обработка!C20 -> Линчеппинг | D13: =обработка!D20 -> Фрелунда | E13: =обработка!I20 -> 2 : 4 | G13: 2 | H13: 4 | I13: П | J13: SHL | K13: 2 | L13: 4 | M13: 2:4 | N13: Линчеппинг | O13: Фрелунда | P13: 2 | Q13: 4 | R13: Дома | S13: П | T13: 2 | U13: 4 | V13: 10 | W13: 3 | X13: 1 | Y13: 6 | Z13: 21 | AA13: 28 | AB13: 10 | AC13: 7 | AD13: 3 | AE13: 1 | AF13: 3 | AG13: 20 | AH13: 16 | AI13: 10 | AJ13: 3 | AK13: 0 | AL13: 0 | AM13: 3 | AN13: 1 | AO13: 12 | AP13: 0 | AQ13: 1 | AR13: 1 | AS13: 2 | AT13: 3 | AU13: 2 | AV13: 1 | AW13: 0 | AX13: 0 | AY13: 0.4761904762 | AZ13: 0.3571428571 | BA13: -0.1761904762 | BB13: 6 | BD13: П | BE13: 0
A14: 2015-05-23 | B14: VYS | C14: Витебск | D14: Динамо Минск | E14: 0 : 0 | G14: 1 | H14: =IF(S4="В",IF(T4-U4>1.5,"EW","W"),"ЛОЛ") -> ЛОЛ | I14: =IF(H14="ЛОЛ",J14,H14) -> D | J14: =IF(S4="П",IF(((T4-U4)*(-1))<1.5,"L","HL"),"D") -> D
A15: 2015-05-16 | B15: VYS | C15: Славия Мозырь | D15: Витебск | E15: 4 : 0 | G15: 2 | H15: =IF(S5="В",IF(T5-U5>1.5,"EW","W"),"ЛОЛ") -> EW | I15: =IF(H15="ЛОЛ",J15,H15) -> EW | J15: =IF(S5="П",IF(((T5-U5)*(-1))<1.5,"L","HL"),"D") -> D
A16: 2015-05-11 | B16: VYS | C16: Витебск | D16: Слуцк | E16: 1 : 0 | G16: 3 | H16: =IF(S6="В",IF(T6-U6>1.5,"EW","W"),"ЛОЛ") -> ЛОЛ | I16: =IF(H16="ЛОЛ",J16,H16) -> HL | J16: =IF(S6="П",IF(((T6-U6)*(-1))<1.5,"L","HL"),"D") -> HL
A17: 2015-05-03 | B17: VYS | C17: Динамо-Брест | D17: Витебск | E17: 3 : 2 | G17: 4 | H17: =IF(S7="В",IF(T7-U7>1.5,"EW","W"),"ЛОЛ") -> EW | I17: =IF(H17="ЛОЛ",J17,H17) -> EW | J17: =IF(S7="П",IF(((T7-U7)*(-1))<1.5,"L","HL"),"D") -> D
A18: 2015-04-26 | B18: VYS | C18: Витебск | D18: Нафтан | E18: 1 : 3 | G18: 5 | H18: =IF(S8="В",IF(T8-U8>1.5,"EW","W"),"ЛОЛ") -> EW | I18: =IF(H18="ЛОЛ",J18,H18) -> EW | J18: =IF(S8="П",IF(((T8-U8)*(-1))<1.5,"L","HL"),"D") -> D
A19: 2015-04-19 | B19: VYS | C19: Белшина | D19: Витебск | E19: 1 : 1
A20: 2015-04-11 | B20: VYS | C20: Гранит Микашевичи | D20: Витебск | E20: 1 : 1
A21: 2015-04-04 | B21: BEL | C21: Витебск | D21: Динамо Минск | E21: 1 : 3

Sheet Команда 2 (hidden)
A1: Команда 2 (ГОСТИ)
A2: Дата | B2: Лига | C2: Хозяева | D2: Гости | E2: Счёт | V2: Всего | AC2: Дома | AJ2: В гостях | AQ2: Забивают дома | AU2: Забивают в гостях
A3: =F3 -> Фрелунда | F3: =IF(COUNTIF(C4:D13,C4)>COUNTIF(C4:D13,D4),C4,D4) -> Фрелунда | G3: Заб | H3: Проп | I3: Рез | J3: Турнир | K3: Дом | L3: Гость | M3: Счёт | N3: Команда1 | O3: Команда2 | P3: Голы1 | Q3: Голы2 | R3: Где играла | S3: Результат | T3: Забито | U3: Пропущено | V3: Игр | W3: В | X3: Н | Y3: П | Z3: Забито | AA3: Пропущено | AB3: Очки | AC3: Игр | AD3: В | AE3: Н | AF3: П | AG3: Забито | AH3: Пропущено | AI3: Очки | AJ3: Игр | AK3: В | AL3: Н | AM3: П | AN3: Забито | AO3: Пропущено | AP3: Очки | AQ3: 0 | AR3: 1 | AS3: 2 | AT3: 3+ | AU3: 0 | AV3: 1 | AW3: 2 | AX3: 3+ | AY3: Забивают | AZ3: Пропускают | BA3: Рейтинг | BB3: тотал | BE3: =A3 -> Фрелунда
A4: =обработка!A9 -> 20.10.18 | B4: =обработка!B9 -> SHL | C4: =обработка!C9 -> Фрелунда | D4: =обработка!D9 -> ХВ-71 | E4: =обработка!I9 -> 4 : 1 | G4: =IF(R4="Дома",K4,L4) -> 4 | H4: =IF(R4="Дома",L4,K4) -> 1 | I4: =IF(R4="Дома",IF(K4>L4,"В",IF(K4=L4,"Н","П")),IF(L4>K4,"В",IF(K4=L4,"Н","П"))) -> В | J4: =B4 -> SHL | K4: =VALUE(LEFT(M4,FIND(":",M4,1)-1)) -> 4 | L4: =VALUE(LEFT(RIGHT(M4,LEN(M4)-FIND(":",M4,1)),1)) -> 1 | M4: =SUBSTITUTE(E4," : ",":") -> 4:1 | N4: =C4 -> Фрелунда | O4: ХВ-71 | P4: =VALUE(LEFT(M4,FIND(":",M4,1)-1)) -> 4 | Q4: =VALUE(LEFT(RIGHT(M4,LEN(M4)-FIND(":",M4,1)),1)) -> 1 | R4: =IF(C4=A$3,"Дома","В гостях") -> Дома | S4: =I4 -> В | T4: =G4 -> 4 | U4: 1 | V4: 1 | W4: =IF(S4="В",1,0) -> 1 | X4: =IF(S4="Н",1,0) -> 0 | Y4: =IF(S4="П",1,0) -> 0 | Z4: =T4 -> 4 | AA4: =U4 -> 1 | AB4: =W4*3+X4 -> 3 | AC4: =IF(R4="Дома",1,0) -> 1 | AD4: =IF(R4="Дома",IF(S4="В",1,0),0) -> 1 | AE4: =IF(R4="Дома",IF(S4="Н",1,0),0) -> 0 | AF4: =IF(R4="Дома",IF(S4="П",1,0),0) -> 0 | AG4: =IF(R4="Дома",T4,0) -> 4 | AH4: =IF(R4="Дома",U4,0) -> 1 | AI4: =AD4*3+AE4 -> 3 | AJ4: =IF(R4<>"Дома",1,0) -> 0 | AK4: =IF(R4<>"Дома",IF(S4="В",1,0),0) -> 0 | AL4: =IF(R4<>"Дома",IF(S4="Н",1,0),0) -> 0 | AM4: =IF(R4<>"Дома",IF(S4="П",1,0),0) -> 0 | AN4: =IF(R4<>"Дома",T4,0) -> 0 | AO4: =IF(R4<>"Дома",U4,0) -> 0 | AP4: =AK4*3+AL4 -> 0 | AQ4: =IF(R4="Дома",IF(T4=0,1,0),0) -> 0 | AR4: =IF(R4="Дома",IF(T4=1,1,0),0) -> 0 | AS4: =IF(R4="Дома",IF(T4=2,1,0),0) -> 0 | AT4: =IF(R4="Дома",IF(T4>=3,1,0),0) -> 1 | AU4: =IF(R4<>"Дома",IF(X4=0,1,0),0) -> 0 | AV4: =IF(R4<>"Дома",IF(X4=1,1,0),0) -> 0 | AW4: =IF(R4<>"Дома",IF(X4=2,1,0),0) -> 0 | AX4: =IF(R4<>"Дома",IF(X4>=3,1,0),0) -> 0 | AY4: =V4/Z4 -> 0.25 | AZ4: =V4/AA4 -> 1 | BA4: =(AI4/IF(AC4<1,1,AC4)+AP4/IF(AJ4<1,1,AJ4)*1.5+AG4/IF(AC4<1,1,AC4)+AN4/IF(AJ4<1,1,AJ4)*1.5-AH4/IF(AC4<1,1,AC4)*1.5-AO4/IF(AJ4<1,1,AJ4))/15 -> 0.3666666667 | BB4: =IF(R4="Дома",T4+U4,"") -> 5 | BD4: =IF(R4="Дома",IF(K4>L4,"В",IF(K4=L4,"Н","П")),IF(L4>K4,"В",IF(K4=L4,"Н","П"))) -> В | BE4: =IF(R4="Дома",IF(K4>L4,3,IF(K4=L4,1,0)),IF(L4>K4,3,IF(K4=L4,1,0))) -> 3 | BF4: НАБРАННЫЕ ОЧКИ
A5: =обработка!A10 -> 18.10.18 | B5: =обработка!B10 -> SHL | C5: =обработка!C10 -> Фрелунда | D5: =обработка!D10 -> Лулео | E5: =обработка!I10 -> 1 : 5 | G5: =IF(R5="Дома",K5,L5) -> 1 | H5: =IF(R5="Дома",L5,K5) -> 5 | I5: =IF(R5="Дома",IF(K5>L5,"В",IF(K5=L5,"Н","П")),IF(L5>K5,"В",IF(K5=L5,"Н","П"))) -> П | J5: SHL | K5: =VALUE(LEFT(M5,FIND(":",M5,1)-1)) -> 1 | L5: =VALUE(LEFT(RIGHT(M5,LEN(M5)-FIND(":",M5,1)),1)) -> 5 | M5: 1:5 | N5: Фрелунда | O5: Лулео | P5: =VALUE(LEFT(M5,FIND(":",M5,1)-1)) -> 1 | Q5: =VALUE(LEFT(RIGHT(M5,LEN(M5)-FIND(":",M5,1)),1)) -> 5 | R5: =IF(C5=A$3,"Дома","В гостях") -> Дома | S5: П | T5: 1 | U5: 5 | V5: =V4+1 -> 2 | W5: =IF(S5="В",W4+1,W4+0) -> 1 | X5: =IF(S5="Н",X4+1,X4+0) -> 0 | Y5: =IF(S5="П",Y4+1,Y4+0) -> 1 | Z5: =T5+Z4 -> 5 | AA5: 6 | AB5: =W5*3+X5 -> 3 | AC5: =IF(R5="Дома",AC4+1,AC4+0) -> 2 | AD5: =IF(R5="Дома",IF(S5="В",AD4+1,AD4+0),AD4+0) -> 1 | AE5: =IF(R5="Дома",IF(S5="Н",AE4+1,AE4+0),AE4+0) -> 0 | AF5: =IF(R5="Дома",IF(S5="П",AF4+1,AF4+0),AF4+0) -> 1 | AG5: =IF(R5="Дома",AG4+T5,AG4+0) -> 5 | AH5: =IF(R5="Дома",AH4+U5,AH4+0) -> 6 | AI5: =AD5*3+AE5 -> 3 | AJ5: =IF(R5<>"Дома",AJ4+1,AJ4+0) -> 0 | AK5: =IF(R5<>"Дома",IF(S5="В",AK4+1,AK4+0),AK4+0) -> 0 | AL5: =IF(R5<>"Дома",IF(S5="Н",AL4+1,AL4+0),AL4+0) -> 0 | AM5: =IF(R5<>"Дома",IF(S5="П",AM4+1,AM4+0),AM4+0) -> 0 | AN5: =IF(R5<>"Дома",AN4+T5,AN4+0) -> 0 | AO5: =IF(R5<>"Дома",AO4+U5,AO4+0) -> 0 | AP5: =AK5*3+AL5 -> 0 | AQ5: =IF(R5="Дома",IF(T5=0,AQ4+1,AQ4),AQ4) -> 0 | AR5: =IF(R5="Дома",IF(T5=1,AR4+1,AR4),AR4) -> 1 | AS5: =IF(R5="Дома",IF(T5=2,AS4+1,AS4),AS4) -> 0 | AT5: =IF(R5="Дома",IF(T5>=3,AT4+1,AT4),AT4) -> 1 | AU5: =IF(R5<>"Дома",IF(T5=0,AU4+1,AU4),AU4) -> 0 | AV5: =IF(R5<>"Дома",IF(T5=1,AV4+1,AV4),AV4) -> 0 | AW5: =IF(R5<>"Дома",IF(T5=2,AW4+1,AW4),AW4) -> 0 | AX5: =IF(R5<>"Дома",IF(T5>=3,AX4+1,AX4),AX4) -> 0 | AY5: =V5/Z5 -> 0.4 | AZ5: =V5/AA5 -> 0.3333333333 | BA5: =(AI5/IF(AC5<1,1,AC5)+AP5/IF(AJ5<1,1,AJ5)*1.5+AG5/IF(AC5<1,1,AC5)+AN5/IF(AJ5<1,1,AJ5)*1.5-AH5/IF(AC5<1,1,AC5)*1.5-AO5/IF(AJ5<1,1,AJ5))/15 -> -0.03333333333 | BB5: =IF(R5="Дома",T5+U5,"") -> 6 | BD5: П | BE5: =IF(R5="Дома",IF(K5>L5,3,IF(K5=L5,1,0)),IF(L5>K5,3,IF(K5=L5,1,0))) -> 0
A6: =обработка!A11 -> 16.10.18 | B6: =обработка!B11 -> ЛЧ | C6: =обработка!C11 -> Ольборг | D6: =обработка!D11 -> Фрелунда | E6: =обработка!I11 -> 1 : 5 | G6: 5 | H6: 1 | I6: В | J6: ЛЧ | K6: 1 | L6: 5 | M6: 1:5 | N6: Ольборг | O6: Фрелунда | P6: 1 | Q6: 5 | R6: В гостях | S6: В | T6: 5 | U6: 1 | V6: 3 | W6: =IF(S6="В",W5+1,W5+0) -> 2 | X6: 0 | Y6: 1 | Z6: 10 | AA6: 7 | AB6: 6 | AC6: 2 | AD6: 1 | AE6: 0 | AF6: 1 | AG6: 5 | AH6: 6 | AI6: 3 | AJ6: =IF(R6<>"Дома",AJ5+1,AJ5+0) -> 1 | AK6: 1 | AL6: 0 | AM6: 0 | AN6: 5 | AO6: 1 | AP6: 3 | AQ6: =IF(R6="Дома",IF(T6=0,AQ5+1,AQ5),AQ5) -> 0 | AR6: 1 | AS6: 0 | AT6: 1 | AU6: 0 | AV6: 0 | AW6: 0 | AX6: 1 | AY6: 0.3 | AZ6: 0.4285714286 | BA6: 0.7 | BD6: В | BE6: 3
A7: =обработка!A12 -> 13.10.18 | B7: =обработка!B12 -> SHL | C7: =обработка!C12 -> Ферьестад | D7: =обработка!D12 -> Фрелунда | E7: =обработка!I12 -> 3 : 4 | G7: 4 | H7: 3 | I7: В | J7: SHL | K7: 3 | L7: 4 | M7: 3:4 | N7: Ферьестад | O7: Фрелунда | P7: 3 | Q7: 4 | R7: В гостях | S7: В | T7: 4 | U7: 3 | V7: 4 | W7: 3 | X7: 0 | Y7: 1 | Z7: 14 | AA7: 10 | AB7: 9 | AC7: 2 | AD7: 1 | AE7: 0 | AF7: 1 | AG7: 5 | AH7: 6 | AI7: 3 | AJ7: 2 | AK7: 2 | AL7: 0 | AM7: 0 | AN7: 9 | AO7: 4 | AP7: 6 | AQ7: 0 | AR7: 1 | AS7: 0 | AT7: 1 | AU7: 0 | AV7: 0 | AW7: 0 | AX7: 2 | AY7: 0.2857142857 | AZ7: 0.4 | BA7: 0.5833333333 | BD7: В | BE7: 3
A8: =обработка!A13 -> 11.10.18 | B8: =обработка!B13 -> SHL | C8: =обработка!C13 -> Лулео | D8: =обработка!D13 -> Фрелунда | E8: =обработка!I13 -> 2 : 3 | G8: 3 | H8: 2 | I8: В | J8: SHL | K8: 2 | L8: 3 | M8: 2:3 | N8: Лулео | O8: Фрелунда | P8: 2 | Q8: 3 | R8: В гостях | S8: В | T8: 3 | U8: 2 | V8: 5 | W8: 4 | X8: 0 | Y8: 1 | Z8: 17 | AA8: 12 | AB8: 12 | AC8: 2 | AD8: 1 | AE8: 0 | AF8: 1 | AG8: 5 | AH8: 6 | AI8: 3 | AJ8: 3 | AK8: 3 | AL8: 0 | AM8: 0 | AN8: =IF(R8<>"Дома",AN7+T8,AN7+0) -> 12 | AO8: 6 | AP8: 9 | AQ8: 0 | AR8: 1 | AS8: 0 | AT8: 1 | AU8: 0 | AV8: 0 | AW8: 0 | AX8: 3 | AY8: 0.2941176471 | AZ8: 0.4166666667 | BA8: 0.5333333333 | BD8: В | BE8: 3
A9: =обработка!A16 -> 19.12.17 | B9: =обработка!B16 -> SHL | C9: =обработка!C16 -> Линчеппинг | D9: =обработка!D16 -> Фрелунда | E9: =обработка!I16 -> 0 : 2 | G9: 2 | H9: 0 | I9: В | J9: SHL | K9: 0 | L9: 2 | M9: 0:2 | N9: Линчеппинг | O9: Фрелунда | P9: 0 | Q9: 2 | R9: В гостях | S9: В | T9: 2 | U9: 0 | V9: 6 | W9: 5 | X9: 0 | Y9: 1 | Z9: 19 | AA9: 12 | AB9: 15 | AC9: 2 | AD9: 1 | AE9: 0 | AF9: 1 | AG9: 5 | AH9: 6 | AI9: 3 | AJ9: 4 | AK9: 4 | AL9: 0 | AM9: 0 | AN9: 14 | AO9: 6 | AP9: 12 | AQ9: 0 | AR9: 1 | AS9: 0 | AT9: 1 | AU9: 0 | AV9: 0 | AW9: 1 | AX9: 3 | AY9: 0.3157894737 | AZ9: 0.5 | BA9: 0.5166666667 | BD9: В | BE9: 3
A10: =обработка!A17 -> 25.11.17 | B10: =обработка!B17 -> SHL | C10: =обработка!C17 -> Фрелунда | D10: =обработка!D17 -> Линчеппинг | E10: =обработка!I17 -> 5 : 1 | G10: 5 | H10: 1 | I10: В | J10: SHL | K10: 5 | L10: 1 | M10: 5:1 | N10: Фрелунда | O10: Линчеппинг | P10: 5 | Q10: 1 | R10: Дома | S10: В | T10: 5 | U10: 1 | V10: 7 | W10: 6 | X10: 0 | Y10: 1 | Z10: 24 | AA10: 13 | AB10: 18 | AC10: 3 | AD10: 2 | AE10: 0 | AF10: 1 | AG10: 10 | AH10: 7 | AI10: 6 | AJ10: 4 | AK10: 4 | AL10: 0 | AM10: 0 | AN10: 14 | AO10: 6 | AP10: 12 | AQ10: 0 | AR10: 1 | AS10: 0 | AT10: 2 | AU10: 0 | AV10: 0 | AW10: 1 | AX10: 3 | AY10: 0.2916666667 | AZ10: 0.5384615385 | BA10: 0.6722222222 | BB10: 6 | BD10: В | BE10: 3
A11: =обработка!A18 -> 28.10.17 | B11: =обработка!B18 -> SHL | C11: =обработка!C18 -> Фрелунда | D11: =обработка!D18 -> Линчеппинг | E11: =обработка!I18 -> 4 : 0 | G11: 4 | H11: 0 | I11: В | J11: SHL | K11: 4 | L11: 0 | M11: 4:0 | N11: Фрелунда | O11: Линчеппинг | P11: 4 | Q11: 0 | R11: Дома | S11: В | T11: 4 | U11: 0 | V11: 8 | W11: 7 | X11: 0 | Y11: 1 | Z11: 28 | AA11: 13 | AB11: 21 | AC11: 4 | AD11: 3 | AE11: 0 | AF11: 1 | AG11: =IF(R11="Дома",AG10+T11,AG10+0) -> 14 | AH11: 7 | AI11: 9 | AJ11: 4 | AK11: 4 | AL11: 0 | AM11: 0 | AN11: 14 | AO11: 6 | AP11: 12 | AQ11: 0 | AR11: 1 | AS11: 0 | AT11: 3 | AU11: 0 | AV11: 0 | AW11: 1 | AX11: 3 | AY11: 0.2857142857 | AZ11: 0.6153846154 | BA11: 0.7583333333 | BB11: 4 | BD11: В | BE11: 3
A12: =обработка!A19 -> 14.10.17 | B12: =обработка!B19 -> SHL | C12: =обработка!C19 -> Линчеппинг | D12: =обработка!D19 -> Фрелунда | E12: =обработка!I19 -> 2 : 3 | G12: 3 | H12: 2 | I12: В | J12: SHL | K12: 2 | L12: 3 | M12: 2:3 | N12: Линчеппинг | O12: Фрелунда | P12: 2 | Q12: 3 | R12: В гостях | S12: В | T12: 3 | U12: 2 | V12: 9 | W12: 8 | X12: 0 | Y12: 1 | Z12: 31 | AA12: 15 | AB12: 24 | AC12: 4 | AD12: 3 | AE12: 0 | AF12: 1 | AG12: 14 | AH12: 7 | AI12: 9 | AJ12: 5 | AK12: 5 | AL12: 0 | AM12: 0 | AN12: 17 | AO12: 8 | AP12: 15 | AQ12: 0 | AR12: 1 | AS12: 0 | AT12: 3 | AU12: 0 | AV12: 0 | AW12: 1 | AX12: 4 | AY12: 0.2903225806 | AZ12: 0.6 | BA12: 0.7416666667 | BD12: В | BE12: 3
A13: =обработка!A20 -> 09.03.17 | B13: =обработка!B20 -> SHL | C13: =обработка!C20 -> Линчеппинг | D13: =обработка!D20 -> Фрелунда | E13: =обработка!I20 -> 2 : 4 | G13: 4 | H13: 2 | I13: В | J13: SHL | K13: 2 | L13: 4 | M13: 2:4 | N13: Линчеппинг | O13: Фрелунда | P13: 2 | Q13: 4 | R13: В гостях | S13: В | T13: 4 | U13: 2 | V13: 10 | W13: 9 | X13: 0 | Y13: 1 | Z13: 35 | AA13: 17 | AB13: 27 | AC13: 4 | AD13: 3 | AE13: 0 | AF13: 1 | AG13: 14 | AH13: 7 | AI13: 9 | AJ13: 6 | AK13: 6 | AL13: 0 | AM13: 0 | AN13: 21 | AO13: 10 | AP13: 18 | AQ13: 0 | AR13: 1 | AS13: 0 | AT13: 3 | AU13: 0 | AV13: 0 | AW13: 1 | AX13: 5 | AY13: 0.2857142857 | AZ13: 0.5882352941 | BA13: 0.7472222222 | BD13: В | BE13: 3
A14: 2015-03-03 | B14: POK | C14: Аален | D14: Хоффенхайм | E14: 0 : 2 | G14: 1 | H14: =IF(S4="В",IF(T4-U4>1.5,"EW","W"),"ЛОЛ") -> EW | I14: =IF(H14="ЛОЛ",J14,H14) -> EW | J14: =IF(S4="П",IF(((T4-U4)*(-1))<1.5,"L","HL"),"D") -> D
A15: 2015-01-25 | B15: PRI | C15: Депортиво Петаре | D15: Депортиво Ансоатеги | E15: 0 : 0 | G15: 2 | H15: =IF(S5="В",IF(T5-U5>1.5,"EW","W"),"ЛОЛ") -> ЛОЛ | I15: =IF(H15="ЛОЛ",J15,H15) -> HL | J15: =IF(S5="П",IF(((T5-U5)*(-1))<1.5,"L","HL"),"D") -> HL
A16: 2014-12-27 | B16: PRE | C16: Итхад Аль Шортах | D16: Харас Эль-Ходуд | E16: 0 : 0 | G16: 3 | H16: =IF(S6="В",IF(T6-U6>1.5,"EW","W"),"ЛОЛ") -> EW | I16: =IF(H16="ЛОЛ",J16,H16) -> EW | J16: =IF(S6="П",IF(((T6-U6)*(-1))<1.5,"L","HL"),"D") -> D
A17: 2014-12-21 | B17: PRE | C17: Смуха | D17: Итхад Аль Шортах | E17: 1 : 0 | G17: 4 | H17: =IF(S7="В",IF(T7-U7>1.5,"EW","W"),"ЛОЛ") -> W | I17: =IF(H17="ЛОЛ",J17,H17) -> W | J17: =IF(S7="П",IF(((T7-U7)*(-1))<1.5,"L","HL"),"D") -> D
G18: 5 | H18: =IF(S8="В",IF(T8-U8>1.5,"EW","W"),"ЛОЛ") -> W | I18: =IF(H18="ЛОЛ",J18,H18) -> W | J18: =IF(S8="П",IF(((T8-U8)*(-1))<1.5,"L","HL"),"D") -> D

Sheet С1 (hidden)
B1: Всего | I1: Дома | P1: На выезде
B2: Игр | C2: В | D2: Н | E2: П | F2: Забито | G2: Пропущено | H2: Очки | I2: Игр | J2: В | K2: Н | L2: П | M2: Забито | N2: Пропущено | O2: Очки | P2: Игр | Q2: В | R2: Н | S2: П | T2: Забито | U2: Пропущено | V2: Очки
A3: Хозяева | B3: ='Команда 1'!V13 -> 10 | C3: ='Команда 1'!W13 -> 3 | D3: ='Команда 1'!X13 -> 1 | E3: ='Команда 1'!Y13 -> 6 | F3: ='Команда 1'!Z13 -> 21 | G3: ='Команда 1'!AA13 -> 28 | H3: ='Команда 1'!AB13 -> 10 | I3: ='Команда 1'!AC13 -> 7 | J3: ='Команда 1'!AD13 -> 3 | K3: ='Команда 1'!AE13 -> 1 | L3: ='Команда 1'!AF13 -> 3 | M3: ='Команда 1'!AG13 -> 20 | N3: ='Команда 1'!AH13 -> 16 | O3: ='Команда 1'!AI13 -> 10 | P3: ='Команда 1'!AJ13 -> 3 | Q3: ='Команда 1'!AK13 -> 0 | R3: ='Команда 1'!AL13 -> 0 | S3: ='Команда 1'!AM13 -> 3 | T3: ='Команда 1'!AN13 -> 1 | U3: ='Команда 1'!AO13 -> 12 | V3: ='Команда 1'!AP13 -> 0
A4: Гости | B4: ='Команда 2'!V13 -> 10 | C4: ='Команда 2'!W13 -> 9 | D4: ='Команда 2'!X13 -> 0 | E4: ='Команда 2'!Y13 -> 1 | F4: ='Команда 2'!Z13 -> 35 | G4: ='Команда 2'!AA13 -> 17 | H4: ='Команда 2'!AB13 -> 27 | I4: ='Команда 2'!AC13 -> 4 | J4: ='Команда 2'!AD13 -> 3 | K4: ='Команда 2'!AE13 -> 0 | L4: ='Команда 2'!AF13 -> 1 | M4: ='Команда 2'!AG13 -> 14 | N4: ='Команда 2'!AH13 -> 7 | O4: ='Команда 2'!AI13 -> 9 | P4: ='Команда 2'!AJ13 -> 6 | Q4: ='Команда 2'!AK13 -> 6 | R4: ='Команда 2'!AL13 -> 0 | S4: ='Команда 2'!AM13 -> 0 | T4: ='Команда 2'!AN13 -> 21 | U4: ='Команда 2'!AO13 -> 10 | V4: ='Команда 2'!AP13 -> 18
B5: Забивают | E5: Пропускают | I5: Забивают | L5: Пропускают | O5: Забивают | R5: Пропускают | U5: 1 | V5: =J3/I3/(J3/I3+K3/I3+Q4/P4+R4/P4) -> 0.2727272727 | W5: =C3/B3/(C3/B3+D3/B3+D4/B4+C4/B4) -> 0.2307692308 | Y5: =I6/L6*O6/R6*B6/E6*N16 -> 0.1936383929 | Z5: =I7/L7*O7/R7*B7/E7*O16 -> 30.26470588
A6: Хозяева | B6: =F3/B3 -> 2.1 | E6: =G3/B3 -> 2.8 | I6: =M3/I3 -> 2.857142857 | L6: =N3/I3 -> 2.285714286 | O6: =T3/P3 -> 0.3333333333 | R6: =U3/P3 -> 4 | U6: X | V6: =(K3/I3+R4/P4)/(J3/I3+K3/I3+Q4/P4+R4/P4) -> 0.09090909091 | W6: =(D3/B3+D4/B4)/(C3/B3+D3/B3+D4/B4+C4/B4) -> 0.07692307692 | Y6: =Y5-N16 -> -2.284933036 | Z6: =O16 -> 3.5
A7: Гости | B7: =F4/B4 -> 3.5 | E7: =G4/B4 -> 1.7 | I7: =M4/I4 -> 3.5 | L7: =N4/I4 -> 1.75 | O7: =T4/P4 -> 3.5 | R7: =U4/P4 -> 1.666666667 | U7: 2 | V7: =Q4/P4/(J3/I3+K3/I3+Q4/P4+R4/P4) -> 0.6363636364 | W7: =C4/B4/(C3/B3+D3/B3+D4/B4+C4/B4) -> 0.6923076923 | Y7: =IF(Y6=0,"NO BET",IF(Y6<0,"П1 ","П2 ")) -> П1 | Z7: =IF(Z6=0,"NO BET",IF(Z6<0,"П2 ","П1 ")) -> П1
A8: Тоталы | B8: Ср. тотал | D8: Мощь | F8: Рейтинг | H8: Счет | I8: Забит | J8: Проп | K8: Набр | L8: Потер
A9: Хозяева | B9: =AVERAGE(I6,B6)+AVERAGE(R7,E7)-AVERAGE(O9) -> 1.172619048 | D9: =(I6-L6+B6-E6)/2 -> -0.06428571429 | F9: =(O3/I3+V3/P3*1.1+I6-L6*1.1+O6*1.1-R6)/12.6 -> -0.1477702192 | H9: =B9 -> 1.172619048 | I9: ='Команда 1'!AG8*1.5+'Команда 1'!AN8*2 -> 24 | J9: ='Команда 1'!AH8*1.5+'Команда 1'!AO8 -> 13.5 | K9: =I9/5 -> 4.8 | L9: =J9/5 -> 2.7 | M9: Ср. заб. | O9: =AVERAGE(B6,B7,I6,O7) -> 2.989285714
A10: Гости | B10: =AVERAGE(O7,B7)+AVERAGE(L6,E6)-AVERAGE(O9) -> 3.053571429 | D10: =(O7-R7+B7-E7)/2 -> 1.816666667 | F10: =(O4/I4+V4/P4*1.1+I7-L7*1.1+O7*1.1-R7)/12.6 -> 0.7387566138 | H10: =B10 -> 3.053571429 | I10: ='Команда 2'!AG8*1.5+'Команда 2'!AN8*2 -> 31.5 | J10: ='Команда 2'!AH8*1.5+'Команда 2'!AO8 -> 15 | K10: =I10/5 -> 6.3 | L10: =J10/5 -> 3 | Q10: ТОТАЛЫ | V10: =(3*J3/I3)+(K3/I3)+(3*S3/P3) -> 4.428571429 | W10: =$V10/(($V$10+$V$11+$V$12)/100) -> 48.4375
A11: Общий | B11: =B9+B10 -> 4.226190476 | I11: =((K9+L10)/2+(K10+L9)/2)/2 -> 4.2 | Q11: =(AVERAGE($B$6+$E$6,$B$7+$E$7)/2)+(AVERAGE($I$6+$L$6,$O$7+$R$7)/2) -> 5.102380952 | V11: =(3*K3/I3)+(3*R4/P4) -> 0.4285714286 | W11: =$V11/(($V$10+$V$11+$V$12)/100) -> 4.6875
A12: Т(2.5) | B12: Т1 | C12: Т2 | D12: Мощь | F12: 1-Х-2 | I12: Рейтинг | V12: =(3*L3/I3)+(3*Q4/P4)+(R4/P4) -> 4.285714286 | W12: =$V12/(($V$10+$V$11+$V$12)/100) -> 46.875
A13: =B11 -> 4.226190476 | B13: =B9 -> 1.172619048 | C13: =B10 -> 3.053571429 | D13: =D9 -> -0.06428571429 | E13: =D10 -> 1.816666667 | F13: =AVERAGE(V5,W5) -> 0.2517482517 | G13: =AVERAGE(V6,W6) -> 0.08391608392 | H13: =AVERAGE(V7,W7) -> 0.6643356643 | I13: =F9 -> -0.1477702192 | J13: =F10 -> 0.7387566138 | P13: Прогноз "Точный счёт 1" | T13: Прогноз "Вероятность забитого гола"
A14: Прогноз "Могут забить"
A15: Итоги | B15: Т(2.5) | C15: Т1 | D15: Т2 | E15: Серия | G15: 1-Х-2 | J15: Рейтинг | L15: Фора | M15: 1Х | N15: Заб1 | O15: Заб2 | Q15: Счет | U15: Забьет гол
A16: 10 игр | B16: =A13 -> 4.226190476 | C16: =B13 -> 1.172619048 | D16: 3.053571429 | G16: =F13 -> 0.2517482517 | H16: 0.08391608392 | I16: =H13 -> 0.6643356643 | J16: =I13 -> -0.1477702192 | K16: 0.7387566138 | L16: =C16-D16 -> -1.880952381 | M16: =IF(G16-I16>0.23,"П1",IF(G16>I16,"1X",IF(I16-G16>0.24,"П2",IF(I16>G16,"Х2","")))) -> П2 | N16: =AVERAGE(I6,B6) -> 2.478571429 | O16: =AVERAGE(O7,B7) -> 3.5 | Q16: =ROUND(AVERAGE(F21,N16),0) -> 2 | R16: =ROUND(AVERAGE(G21,O16),0) -> 3 | U16: =IF(N16>0.6,"Yes","No") -> Yes | V16: =IF(O16>0.6,"Yes","No") -> Yes
AC17: ВСЕГО | AE17: ДОМА | AG17: ВЫЕЗД
AC18: WDL | AD18: Заб/Проп | AE18: WDL | AF18: Заб/Проп | AG18: WDL | AH18: Заб/Проп
A19: Среднее | AC19: =CONCATENATE(C3,"/",D3,"/",E3) -> 3/1/6 | AD19: =CONCATENATE(F3,"/",G3) -> 21/28 | AE19: =CONCATENATE(J3,"/",K3,"/",L3) -> 3/1/3 | AF19: =CONCATENATE(M3,"/",N3) -> 20/16 | AG19: =CONCATENATE(Q3,"/",R3,"/",S3) -> 0/0/3 | AH19: =CONCATENATE(T3,"/",U3) -> 1/12
A20: Команда 1 | C20: Команда 2 | E20: Т | F20: Т1 | G20: Т2 | H20: Серия | J20: 1-Х-2 | M20: 1Х | N20: Х2 | O20: Фора | P20: 1Х2 | Q20: Заб 1 | R20: Заб 2 | S20: Тотал | T20: Счет | U20: ТБ(2.5) | AC20: =CONCATENATE(C4,"/",D4,"/",E4) -> 9/0/1 | AD20: =CONCATENATE(F4,"/",G4) -> 35/17 | AE20: =CONCATENATE(J4,"/",K4,"/",L4) -> 3/0/1 | AF20: =CONCATENATE(M4,"/",N4) -> 14/7 | AG20: =CONCATENATE(Q4,"/",R4,"/",S4) -> 6/0/0 | AH20: =CONCATENATE(T4,"/",U4) -> 21/10
A21: ='Команда 1'!A3 -> Линчеппинг | C21: ='Команда 2'!A3 -> Фрелунда | E21: =B16 -> 4.226190476 | F21: =C16 -> 1.172619048 | G21: 3.053571429 | H21: =CONCATENATE('Команда 1'!S4," ",'Команда 1'!S5," ",'Команда 1'!S6," ",'Команда 1'!S7," ",'Команда 1'!S8) -> Н В П В В | I21: =CONCATENATE('Команда 2'!S4," ",'Команда 2'!S5," ",'Команда 2'!S6," ",'Команда 2'!S7," ",'Команда 2'!S8) -> В П В В В | J21: 0.2517482517 | K21: 0.08391608392 | L21: 0.6643356643 | M21: =V5+V6/2 -> 0.3181818182 | N21: =V7+V6/2 -> 0.6818181818 | O21: =F21-G21 -> -1.880952381 | P21: =IF(AND(J21-L21>0.27,Q16>R16),"П1",IF(AND(J21>L21,Q16>=R16),"1X",IF(AND(L21-J21>0.12,R16>0),"П2",IF(AND(L21>J21,R16>=Q16),"Х2","")))) -> П2 | Q21: ='Команда 1'!AQ13*1000+'Команда 1'!AR13*100+'Команда 1'!AS13*10+'Команда 1'!AT13 -> 1123 | R21: ='Команда 2'!AQ13*1000+'Команда 1'!AR13*100+'Команда 1'!AS13*10+'Команда 1'!AT13 -> 123 | S21: =IF(E21>2.85,IF(Q16+R16>2,"ТБ(2)"," "),IF(E21<2.2,IF(Q16+R16<3,"ТМ(3)"," ")," ")) -> ТБ(2) | T21: =CONCATENATE(Q16,":",R16) -> 2:3 | U21: =(COUNTIF('Команда 2'!BB4:BB13,">2.5")+COUNTIF('Команда 1'!BB4:BB13,">2.5"))/COUNT('Команда 1'!BB4:BB13,'Команда 2'!BB4:BB13) -> 0
N22: Прогноз "ИСХОД МАТЧА № 1"
A24: Прогноз Тоталов ИТБ / ТБ / ТМ | W24: Авантюрный ТС | X24: =IF(X25=X26,X25,"-") -> - | Y24: =IF(Y25=Y26,Y25,"-") -> -
A25: Анализ Целиком | F25: =IF(F28>=G28,Прогноз!I1,Прогноз!L1) -> Фрелунда | I25: 1 вариант | N25: 2 вариант | T25: =IF(Прогноз!B23>Прогноз!C23,2,IF(Прогноз!B23=Прогноз!C23,1,0)) -> 0 | X25: =IF(Прогноз!B23-Прогноз!B25+Прогноз!B27=Прогноз!B23,Прогноз!B23,"-") -> - | Y25: =IF(Прогноз!C23-Прогноз!C25+Прогноз!C27=Прогноз!C23,Прогноз!C23,"-") -> -
I26: =AVERAGE(B6+E6,B7+E7)/2 -> 2.525 | J26: =AVERAGE(I6+L6,O7+R7)/2 -> 2.577380952 | K26: =AVERAGE(I26,J26) -> 2.551190476 | N26: =(F3+G3+F4+G4+M3+N3+T4+U4)/10/AVERAGE(I3,P4) -> 2.584615385 | T26: =IF(Прогноз!B25>Прогноз!C25,2,IF(Прогноз!B25=Прогноз!C25,1,0)) -> 0 | X26: =IF(Прогноз!B25-Прогноз!B23+Прогноз!B27=Прогноз!B25,Прогноз!B25,"-") -> - | Y26: =IF(Прогноз!C25-Прогноз!C23+Прогноз!C27=Прогноз!C25,Прогноз!C25,"-") -> -
T27: =IF(Прогноз!B27>Прогноз!C27,2,IF(Прогноз!B27=Прогноз!C27,1,0)) -> 0
F28: =(I6+R7)/2 -> 2.261904762 | G28: =(L6+O7)/2 -> 2.892857143
A29: ТБ | C29: ТМ | L29: =K26+N26 -> 5.135805861
A30: =A34+A38-0.5 -> 3.5 | C30: =C34+C38-0.5 -> 6.5 | F30: =F28-G28 -> -0.630952381 | G30: =G28-F28 -> 0.630952381
K31: =IF((L29/2)>=1.65,"ТБ(4)","ТМ(6)") -> ТБ(4) | L31: =IF(L29>1.85,"ТБ(4)","ТМ(6)") -> ТБ(4) | M31: =IF(N26>=2.05,"ТБ(4,5)",IF(N26>=1.76,"ТБ(4)",IF(N26>=1.46,"ТБ(3,5)",IF(N26<=1.45,"ТМ(6)","ТМ(5,5)")))) -> ТБ(4,5) | N31: =IF(L29>=3.5,"ТБ(4,5)",IF(L29>=3.15,"ТБ(4)",IF(L29>=2.8,"ТБ(3,5)",IF(L29>=2.5,"ТМ(6)","ТМ(5,5)")))) -> ТБ(4,5) | O31: =IF(S31<2.15,"ТМ(5,5)",IF(S31<=2.64,"ТМ(6)",IF(S31>=2.8,"ТБ(4)",IF(S31>=3.15,"ТБ(4,5)","ТБ(3,5)")))) -> ТБ(4) | S31: =I26+J26 -> 5.102380952
A33: ТБ1 | C33: ТМ1
A34: =FLOOR(F21,1) -> 1 | C34: =ROUNDUP((A34+1.5),1) -> 2.5
A37: ТБ2 | C37: ТМ2
A38: =FLOOR(G21,1) -> 3 | C38: =ROUNDUP((A38+1.5),1) -> 4.5

Sheet С2 (hidden)
A1: Количество голов забитых командой А | D1: Сколько голов забьёт команда Б в гостях | G1: Расчёт прогноза "Точный счёт 2" по методу "Пророк"
A2: Среднее количество голов, которые команда А забила у себя в домашних матчах | B2: АЗД | C2: =B10/B12 -> 2.857142857 | D2: Среднее количество голов, которые забивает команда Б на выезде | E2: БЗВ | F2: =E10/E12 -> 3.5 | G2: http://vprognoze.ru/bet/strategy/3096-sistema-prorok.html
A3: Среднее количество голов, пропущенное командой Б на выезде | B3: БПВ | C3: =E11/E12 -> 1.666666667 | D3: Среднее количество голов, которые команда А пропускает в домашних матчах | E3: АПД | F3: =B11/B12 -> 2.285714286
A4: Ожидаемое колличество голов, забитых командой А дома против гостевого соперника Б | B4: А забьет | C4: =(C2+C3)/2 -> 2.261904762 | D4: Сколько голов сможет забить команда Б на выезде команде А | E4: Б забьет | F4: =(F2+F3)/2 -> 2.892857143
A6: Примерный счет c округлением: | B6: А забьет | C6: Б забьет | D6: Точный счет | E6: А | F6: Б
B7: =ROUND(C4,0) -> 2 | C7: =ROUND(F4,0) -> 3 | E7: =ROUNDUP(C4,1) -> 2.3 | F7: =ROUNDUP(F4,1) -> 2.9
A9: ='Команда 1'!A3 -> Линчеппинг | D9: ='Команда 2'!A3 -> Фрелунда
A10: Забито в домашних матчах | B10: =С5!D4 -> 20 | D10: Забито в гостевых матчах | E10: =С5!E7 -> 21
A11: Пропущено в домашних матчах | B11: =С5!F4 -> 16 | D11: Пропущено в гостевых матчах | E11: =С5!G7 -> 10
A12: Домашних игр из последних 10 матчей | B12: =С5!B4 -> 7 | D12: Гостевых игр из последних 10 матчей | E12: =С5!C7 -> 6

Sheet С3 (hidden)
A1: Силы Команд
A2: ='Команда 1'!A3 -> Линчеппинг
C3: 1 | D3: 2 | E3: 3 | F3: 4 | G3: Макс | H3: Мин
A4: Сила Атаки | C4: ='Команда 1'!T4 -> 1 | D4: ='Команда 1'!T5 -> 4 | E4: ='Команда 1'!T6 -> 0 | F4: ='Команда 1'!T7 -> 7 | G4: =MAX(C4:F4) -> 7 | H4: =MIN(C4:F4) -> 0 | I4: =C4+D4+E4+F4-G4-H4 -> 5 | J4: =I4/2 -> 2.5 | K4: =ROUND(J4+J9-1.5,0) -> 3
A5: Сила Обороны | C5: ='Команда 1'!U4 -> 1 | D5: ='Команда 1'!U5 -> 2 | E5: ='Команда 1'!U6 -> 3 | F5: ='Команда 1'!U7 -> 4 | G5: =MAX(C5:F5) -> 4 | H5: =MIN(C5:F5) -> 1 | I5: =C5+D5+E5+F5-G5-H5 -> 5 | J5: =I5/2 -> 2.5
A6: ='Команда 2'!A3 -> Фрелунда
C7: 1 | D7: 2 | E7: 3 | F7: 4 | G7: Макс | H7: Мин
A8: Сила Атаки | C8: ='Команда 2'!T4 -> 4 | D8: ='Команда 2'!T5 -> 1 | E8: ='Команда 2'!T6 -> 5 | F8: ='Команда 2'!T7 -> 4 | G8: =MAX(C8:F8) -> 5 | H8: =MIN(C8:F8) -> 1 | I8: =C8+D8+E8+F8-G8-H8 -> 8 | J8: =I8/2 -> 4 | K8: =ROUND(J8+J5-1.5,0) -> 5
A9: Сила Обороны | C9: ='Команда 2'!U4 -> 1 | D9: ='Команда 2'!U5 -> 5 | E9: ='Команда 2'!U6 -> 1 | F9: ='Команда 2'!U7 -> 3 | G9: =MAX(C9:F9) -> 5 | H9: =MIN(C9:F9) -> 1 | I9: =C9+D9+E9+F9-G9-H9 -> 4 | J9: =I9/2 -> 2

Sheet С4 (hidden)
B1: Команда 1 | D1: Команда 2
A2: Голов забито дома | B2: =С5!D12 -> 16 | D2: =С5!D15 -> 5
A3: Голов забито в гостях | B3: =С5!E12 -> 0 | D3: =С5!E15 -> 12
A5: Голов пропущенно дома | B5: =С5!F12 -> 7 | D5: =С5!F15 -> 6
A6: Голов пропущенно в гостях | B6: =С5!G12 -> 3 | D6: =С5!G15 -> 6
A8: Расчёт
A10: Расчёт кефа забитых | B10: =((B2*1.5)+(B3*2))/5 -> 4.8 | D10: =((D2*1.5)+(D3*2))/5 -> 6.3
A11: Расчёт кефа пропущенных | B11: =((B5*1.5)+B6)/5 -> 2.7 | D11: =((D5*1.5)+D6)/5 -> 3
A13: Кф. По каждой команде | B13: =(B10+D11)/2 -> 3.9 | D13: =(D10+B11)/2 -> 4.5
A15: Кеф на тб2.5 | C15: =(B13+D13)/2 -> 4.2

Sheet С5 (hidden)
A1: 10 матчей
A2: Кто играет : | B2: Из них | D2: Забито | F2: Пропущено
A3: Дома | B3: Матчей Дома | C3: Матчей в Гостях | D3: Голы Дома | E3: Голы в Гостях | F3: Голы Дома | G3: Голы в Гостях
A4: ='Команда 1'!A3 -> Линчеппинг | B4: ='Команда 1'!AC13 -> 7 | C4: ='Команда 1'!AJ13 -> 3 | D4: ='Команда 1'!AG13 -> 20 | E4: ='Команда 1'!AN13 -> 1 | F4: ='Команда 1'!AH13 -> 16 | G4: ='Команда 1'!AO13 -> 12
A6: В гостях
A7: ='Команда 2'!A3 -> Фрелунда | B7: ='Команда 2'!AC13 -> 4 | C7: ='Команда 2'!AJ13 -> 6 | D7: ='Команда 2'!AG13 -> 14 | E7: ='Команда 2'!AN13 -> 21 | F7: ='Команда 2'!AH13 -> 7 | G7: ='Команда 2'!AO13 -> 10
A9: 5 матчей
A10: Кто играет : | B10: Из них | D10: Забито | F10: Пропущено
A11: Дома | B11: Матчей Дома | C11: Матчей в Гостях | D11: Голы Дома | E11: Голы в Гостях | F11: Голы Дома | G11: Голы в Гостях
A12: ='Команда 1'!A3 -> Линчеппинг | B12: ='Команда 1'!AC8 -> 4 | C12: ='Команда 1'!AJ8 -> 1 | D12: ='Команда 1'!AG8 -> 16 | E12: ='Команда 1'!AN8 -> 0 | F12: ='Команда 1'!AH8 -> 7 | G12: ='Команда 1'!AO8 -> 3
A14: В гостях
A15: ='Команда 2'!A3 -> Фрелунда | B15: ='Команда 2'!AC8 -> 2 | C15: ='Команда 2'!AJ8 -> 3 | D15: ='Команда 2'!AG8 -> 5 | E15: ='Команда 2'!AN8 -> 12 | F15: ='Команда 2'!AH8 -> 6 | G15: ='Команда 2'!AO8 -> 6
A17: Прогноз "Первый Гол Забьёт" и "Обе Забьют?"
B18: забито | C18: проп | D18: итог
A19: 1к | B19: =D4+E4 -> 21 | C19: =F4+G4 -> 28 | D19: =B19/C19 -> 0.75
A20: 2к | B20: =E7+D7 -> 35 | C20: =F7+G7 -> 17 | D20: =B20/C20 -> 2.058823529
A21: Первый гол : | D21: =IF(D19>D20,"1 команда","2команда") -> 2команда
A22: Точное | B22: =IF(С3!K4>С3!K8,"1 команда","2 команда") -> 2 команда
A23: Забьют обе ? | B23: =IF(С3!K4>0.6,"1","0") -> 1 | C23: =IF(С3!K8>0.6,"1","0") -> 1 | D23: =B23+C23 -> 2
A24: Прогноз "Обе забьют"
A25: Обе забьют? | C25: =IF(С5!D23=2,"ДА","НЕТ") -> ДА

Sheet С6 (hidden)
A1: ТБ | D1: ='Команда 1'!F3 -> Линчеппинг | E1: ТМ | I1: ТБ | L1: ='Команда 2'!F3 -> Фрелунда | M1: ТМ
A3: ='Команда 1'!T3 -> Забито | B3: ='Команда 1'!U3 -> Пропущено | E3: =A3 -> Забито | F3: =B3 -> Пропущено | I3: ='Команда 2'!T3 -> Забито | J3: ='Команда 2'!U3 -> Пропущено | M3: =I3 -> Забито | N3: =J3 -> Пропущено
A4: ='Команда 1'!T4 -> 1 | B4: ='Команда 1'!U4 -> 1 | C4: =(A4+B4)-1 -> 1 | D4: 1 | E4: 1 | F4: 1 | G4: =(E4+F4)+1 -> 3 | I4: ='Команда 2'!T4 -> 4 | J4: ='Команда 2'!U4 -> 1 | K4: =(I4+J4)-1 -> 4 | L4: 1 | M4: 4 | N4: 1 | O4: =(M4+N4)+1 -> 6
A5: ='Команда 1'!T5 -> 4 | B5: ='Команда 1'!U5 -> 2 | C5: 5 | D5: 2 | E5: 4 | F5: 2 | G5: 7 | I5: ='Команда 2'!T5 -> 1 | J5: ='Команда 2'!U5 -> 5 | K5: 5 | L5: 2 | M5: 1 | N5: 5 | O5: 7
A6: ='Команда 1'!T6 -> 0 | B6: ='Команда 1'!U6 -> 3 | C6: 2 | D6: 3 | E6: 0 | F6: 3 | G6: 4 | I6: ='Команда 2'!T6 -> 5 | J6: ='Команда 2'!U6 -> 1 | K6: 5 | L6: 3 | M6: 5 | N6: 1 | O6: 7
A7: ='Команда 1'!T7 -> 7 | B7: ='Команда 1'!U7 -> 4 | C7: 10 | D7: 4 | E7: 7 | F7: 4 | G7: 12 | I7: ='Команда 2'!T7 -> 4 | J7: ='Команда 2'!U7 -> 3 | K7: 6 | L7: 4 | M7: 4 | N7: 3 | O7: 8
A8: ='Команда 1'!T8 -> 4 | B8: ='Команда 1'!U8 -> 0 | C8: 3 | D8: 5 | E8: 4 | F8: 0 | G8: 5 | I8: ='Команда 2'!T8 -> 3 | J8: ='Команда 2'!U8 -> 2 | K8: 4 | L8: 5 | M8: 3 | N8: 2 | O8: 6
A9: ='Команда 1'!T9 -> 0 | B9: ='Команда 1'!U9 -> 2 | C9: 1 | D9: 6 | E9: 0 | F9: 2 | G9: 3 | I9: ='Команда 2'!T9 -> 2 | J9: ='Команда 2'!U9 -> 0 | K9: 1 | L9: 6 | M9: 2 | N9: 0 | O9: 3
A10: ='Команда 1'!T10 -> 1 | B10: ='Команда 1'!U10 -> 5 | C10: 5 | D10: 7 | E10: 1 | F10: 5 | G10: 7 | I10: ='Команда 2'!T10 -> 5 | J10: ='Команда 2'!U10 -> 1 | K10: 5 | L10: 7 | M10: 5 | N10: 1 | O10: 7
A11: ='Команда 1'!T11 -> 0 | B11: ='Команда 1'!U11 -> 4 | C11: 3 | D11: 8 | E11: 0 | F11: 4 | G11: 5 | I11: ='Команда 2'!T11 -> 4 | J11: ='Команда 2'!U11 -> 0 | K11: 3 | L11: 8 | M11: 4 | N11: 0 | O11: 5
A12: ='Команда 1'!T12 -> 2 | B12: ='Команда 1'!U12 -> 3 | C12: 4 | D12: 9 | E12: 2 | F12: 3 | G12: 6 | I12: ='Команда 2'!T12 -> 3 | J12: ='Команда 2'!U12 -> 2 | K12: 4 | L12: 9 | M12: 3 | N12: 2 | O12: 6
A13: ='Команда 1'!T13 -> 2 | B13: ='Команда 1'!U13 -> 4 | C13: 5 | D13: 10 | E13: 2 | F13: 4 | G13: 7 | I13: ='Команда 2'!T13 -> 4 | J13: ='Команда 2'!U13 -> 2 | K13: 5 | L13: 10 | M13: 4 | N13: 2 | O13: 7
A16: =SUM(A4:A13) -> 21 | B16: =SUM(B4:B13) -> 28 | C16: =A16+B16 -> 49 | D16: =C16/10 -> 4.9 | I16: =SUM(I4:I13) -> 35 | J16: =SUM(J4:J13) -> 17 | K16: =I16+J16 -> 52 | L16: =K16/10 -> 5.2
A18: =SUM(A4:A8) -> 16 | B18: =SUM(B4:B8) -> 10 | C18: =A18+B18 -> 26 | D18: =C18/5 -> 5.2 | I18: =SUM(I4:I8) -> 17 | J18: =SUM(J4:J8) -> 12 | K18: =I18+J18 -> 29 | L18: =K18/5 -> 5.8
D21: Серия матчей ТБ2.5 (Пробитие Тотала 2.5 в общем)
E22: 1 | F22: 2 | G22: 3 | H22: 4 | I22: 5
D23: 1к | E23: =A4+B4 -> 2 | F23: =A5+B5 -> 6 | G23: =A6+B6 -> 3 | H23: =A7+B7 -> 11 | I23: =A8+B8 -> 4
D24: 2к | E24: =I4+J4 -> 5 | F24: =I5+J5 -> 6 | G24: =I6+J6 -> 6 | H24: =I7+J7 -> 7 | I24: =I8+J8 -> 5
D26: 1к | E26: =IF(E23>2,"+","-") -> - | F26: + | G26: + | H26: + | I26: +
D27: 2к | E27: + | F27: + | G27: + | H27: + | I27: +
D29: 1к | E29: =CONCATENATE(E26," ",F26," ",G26," ",H26," ",I26) -> - + + + +
D30: 2к | E30: =CONCATENATE(E27," ",F27," ",G27," ",H27," ",I27) -> + + + + +

Sheet С7 (hidden)
A1: Теория лиги | E1: 4 теста | J1: Итоги | K1: Т(2.5) | L1: Т1 | M1: Т2 | N1: Серия | P1: 1-Х-2 | S1: Рейтинг | U1: 1Х2 | V1: Заб1 | W1: Заб2 | Y1: Счет | AF1: 1 | AG1: Х | AH1: 2 | AJ1: =IF(AK1=B2,"1",IF(D2=AK1,"2","Х")) ->  | AK1: =MAX(B2,D2,C4) ->  | AM1: Тоталы
A2: =A10 -> Линчеппинг | B2: =(#REF!/#REF!)*100 ->  | C2: =C10 -> Фрелунда | D2: =(#REF!/#REF!)*100 ->  | E2: № ТЕСТА | F2: ПРОГНОЗ | J2: 10 игр | K2: =J20 -> 4.226190476 | L2: =K20 -> 1 | M2: =L20 -> 3 | P2: =O20 -> 0.2517482517 | Q2: =P20 -> 0.08391608392 | R2: =Q20 -> 0.6643356643 | S2: =R20 -> -0.1477702192 | T2: =S20 -> 0.7387566138 | U2: =IF(P2-R2>0.23,"П1",IF(P2>R2,"1X",IF(R2-P2>0.24,"П2",IF(R2>P2,"Х2","")))) -> П2 | V2: =AVERAGE(С1!I6,С1!B6) -> 2.478571429 | W2: =AVERAGE(С1!O7,С1!B7) -> 3.5 | Y2: =ROUND(AVERAGE(O7,V2),0) -> 2 | Z2: =ROUND(AVERAGE(P7,W2),0) -> 3 | AE2: Лига | AF2: =IF(AJ1=1,1,0) ->  | AG2: =IF(AJ1="Х",1,0) ->  | AH2: =IF(AF2+AG2=0,1,0) ->  | AJ2: =IF(AK2=A11,"1",IF(C11=AK2,"2","Х")) ->  | AK2: =MAX(A11:C11) ->  | AM2: Лига | AN2: =IF(B6>D6,"ТМ","ТБ") ->  | AO2: =COUNTIF(AN2:AN7,"ТБ") -> 4 | AP2: ТБ
E3: Тест №1 | F3: =IF(#REF!>#REF!,#REF!,IF(#REF!<#REF!,#REF!,"Ничья")) ->  | M3: ВСЕ | AE3: Альтадар | AF3: =IF(AJ2=1,1,0) ->  | AG3: =IF(AJ2="Х",1,0) ->  | AJ3: =IF(AK3=P2,"1",IF(R2=AK3,"2","Х")) -> 2 | AK3: =MAX(P2:R2) -> 0.6643356643 | AM3: Альтад | AN3: =IF(SUM(D8:E8)>2.5,"ТБ","ТМ") ->  | AO3: =COUNTIF(AN2:AN7,"ТМ") -> 0 | AP3: ТМ
B4: Ничья | C4: =100-(B2+D2) ->  | E4: Тест № 2 | F4: =#REF! ->  | AE4: Тест1 | AF4: =IF(F3="П1",1,IF(F3="1Х",1,IF(F3="Х1",1,IF(F3="Ф1(+1)",1,0)))) ->  | AG4: =IF(F3="Х",1,IF(F3="1Х",1,IF(F3="Х1",1,IF(F3="Х2",1,IF(F3="2Х",1,0))))) ->  | AH4: =IF(AF4+AG4=0,1,0) ->  | AM4: Total. ИТ | AN4: =IF(L2+M2>2.5,"ТБ","ТМ") -> ТБ | AP4: =IF(AO2>3,"ТБ",IF(AO3=3,"Неизв.","ТМ")) -> ТБ | AY4: ВСЕ
E5: Тест № 3 | F5: =IF(#REF!>#REF!,#REF!,IF(#REF!>#REF!,#REF!,#REF!)) ->  | J5: Среднее | AE5: Тест2 | AF5: =IF(F4="П1",1,IF(F4="1Х",1,IF(F4="Х1",1,IF(F4="Ф1(+1)",1,0)))) ->  | AG5: =IF(F4="Х",1,IF(F4="1Х",1,IF(F4="Х1",1,IF(F4="Х2",1,IF(F4="2Х",1,0))))) ->  | AM5: Total. | AN5: =IF(K2>=2.5,"ТБ","ТМ") -> ТБ | AP5: =AO2/6*100 -> 66.66666667
A6: ТМ 2,5 | B6: =100-D6 ->  | C6: ТБ2,5 | D6: =(#REF!/#REF!)*100-10 ->  | E6: Динамика | F6: =#REF! ->  | J6: Команда 1 | L6: Команда 2 | N6: Т | O6: Т1 | P6: Т2 | Q6: Серия | S6: 1-Х-2 | V6: 1Х | W6: Х2 | X6: Фора | AB6: Тотал | AC6: Счет | AD6: ТБ(2.5) | AE6: Тест3 | AF6: =IF(F5="П1",1,IF(F5="1Х",1,IF(F5="Х1",1,IF(F5="Ф1(+1)",1,0)))) ->  | AG6: =IF(F5="Х",1,IF(F5="1Х",1,IF(F5="Х1",1,IF(F5="Х2",1,IF(F5="2Х",1,0))))) ->  | AM6: Total. Заб | AN6: =IF(V2+W2>2.5,"ТБ","ТМ") -> ТБ | AP6: =AO3/6*100 -> 0
B7: Ф1 | C7: Ф2 | D7: ИТБ1 | E7: ИТБ2 | F7: ИТМ1 | G7: ИТМ2 | H7: 12 | J7: =A10 -> Линчеппинг | L7: =C10 -> Фрелунда | N7: =K2 -> 4.226190476 | O7: =L2 -> 1 | P7: =M2 -> 3 | S7: =P2 -> 0.2517482517 | T7: =Q2 -> 0.08391608392 | U7: =R2 -> 0.6643356643 | V7: =С1!V5+С1!V6/2 -> 0.3181818182 | W7: =С1!V7+С1!V6/2 -> 0.6818181818 | X7: =O7-P7 -> -2 | AB7: =IF(N7>2.85,IF(Y2+Z2>2,"ТБ(2)"," "),IF(N7<2.2,IF(Y2+Z2<3,"ТМ(3)"," ")," ")) -> ТБ(2) | AC7: =CONCATENATE(Y2,":",Z2) -> 2:3 | AD7: =С1!U21 -> 0 | AE7: Динамика | AF7: =IF(F6="П1",1,IF(F6="1Х",1,IF(F6="Х1",1,IF(F6="Ф1(+1)",1,0)))) ->  | AG7: =IF(F6="Х",1,IF(F6="1Х",1,IF(F6="Х1",1,IF(F6="Х2",1,IF(F6="2Х",1,0))))) ->  | AM7: Total. Счет | AN7: =IF(Y2+Z2>2.5,"ТБ","ТМ") -> ТБ
B8: =(#REF!+#REF!)/4 ->  | C8: =(#REF!+#REF!)/4 ->  | D8: =(#REF!+#REF!)/20 ->  | E8: =(#REF!+#REF!)/20 ->  | F8: =(#REF!+#REF!)/20 ->  | G8: =(#REF!+#REF!)/20 ->  | H8: =AVERAGE(A11,C11) ->  | AE8: Альт. ИТ | AF8: =IF(D8>E8,1,0) ->  | AG8: =IF(D8=E8,1,0) -> 
A9: АЛЬТА | AE9: Total. ИТ | AF9: =IF(L2>M2,1,0) -> 0 | AG9: =IF(L2=M2,1,0) -> 0 | AH9: 1
A10: ='Команда 1'!A3 -> Линчеппинг | B10: Х | C10: ='Команда 2'!A3 -> Фрелунда | D10: 1Х | E10: Х2 | F10: ТБ | G10: ТМ | H10: ОЗ: Да | I10: ОЗ: Нет | K10: ХЗ | AE10: Total. | AF10: =IF(AJ3="1",1,0) -> 0 | AG10: =IF(AJ3="х",1,0) -> 0 | AH10: 1
A11: =(#REF!-#REF!-#REF!+#REF!-#REF!+#REF!-#REF!-#REF!+#REF!-#REF!+#REF!-#REF!-#REF!+#REF!-#REF!-#REF!)% ->  | B11: =(#REF!+#REF!+#REF!+#REF!+#REF!+#REF!+#REF!+#REF!+#REF!+#REF!+#REF!+#REF!+#REF!+#REF!+#REF!+#REF!)% ->  | C11: =(#REF!-#REF!-#REF!+#REF!-#REF!+#REF!-#REF!-#REF!+#REF!-#REF!+#REF!-#REF!-#REF!+#REF!-#REF!-#REF!)% ->  | D11: =AVERAGE(A11,B11) ->  | E11: =AVERAGE(C11,B11) ->  | F11: =(#REF!+#REF!)/10 ->  | G11: =(#REF!+#REF!)/10 ->  | H11: =(#REF!+#REF!+#REF!+#REF!)% ->  | I11: =(#REF!+#REF!+#REF!+#REF!)% ->  | J11: =A10 -> Линчеппинг | L11: Х | N11: =C10 -> Фрелунда | P11: ТБ(2.5) | Q11: ТМ(2.5) | R11: Обе забьют | S11: Чёт/Нечет | T11: 1х2 | AE11: Total. Рейтинг | AF11: =IF(S2>T2,1,0) -> 0 | AG11: =IF(S2=T2,1,0) -> 0 | AH11: 1
J12: =ROUND(AF16,0)&"%" -> 0% | L12: =ROUND(AG16,0)&"%" -> 0% | N12: =ROUND(AH16,0)&"%" -> 38% | P12: =ROUND(AP5,0) -> 67 | Q12: =ROUND(AP6,0) -> 0 | R12: =AN18 -> Нет | S12: =IF(#REF!=4,"Нечёт(!)",IF(#REF!=6,"Чёт(!)",IF(#REF!>=7,"Чёт",IF(#REF!<=3,"Нечет","Неизв.")))) ->  | T12: =IF(J12-N12>0.23,"П1",IF(J12>N12,"1X",IF(N12-J12>0.24,"П2",IF(N12>J12,"Х2","")))) -> П2 | AE12: Total. Счет | AF12: =IF(Y2>Z2,1,0) -> 0 | AG12: =IF(Y2=Z2,1,0) -> 0 | AH12: 1 | AM12: =IF(U2="П1",1,IF(U2="П2",2,IF(U2="1X",1,IF(U2="Х2",2)))) -> 2
R13: Прогноз "ИСХОД МАТЧА № 2" | AE13: Total. Заб | AF13: =IF(V2>W2,1,0) -> 0 | AG13: =IF(V2=W2,1,0) -> 0 | AH13: 1
A14: Доп. информация 1-ой команды | D14: Доп. информация 2-ой команды | G14: ТС1 | H14: ТС2 | K14: =AH40 -> 0 | N14: ТБ(2.5)1 | O14: ТБ(2.5)2 | P14: ТМ(2.5)1 | Q14: ТМ(2.5)2 | AF14: =IF(AF25=1,1,0) ->  | AG14: =IF(AF25="X",1,0) ->  | AH14: =IF(AF25=2,1,0) -> 
A15: Сила нападения: | C15: =(#REF!+#REF!)/10 ->  | D15: Сила нападения: | F15: =(#REF!+#REF!)/10 ->  | G15: =#REF!/10 ->  | H15: =#REF!/10 ->  | K15: =AH41 -> 0 | N15: =IF(AP23=1,"Да","Неизв.") -> Неизв. | O15: =IF(AQ23=1,"Да","Неизв.") -> Неизв. | P15: =IF(AP24=1,"Да","Неизв.") -> Неизв. | Q15: =IF(AQ24=1,"Да","Неизв.") -> Неизв. | AE15: СУММ | AF15: =COUNTIF(AF2:AF13,1) -> 0 | AG15: =COUNTIF(AG2:AG13,1) -> 0 | AH15: =COUNTIF(AH2:AH13,1) -> 5
A16: Сила защиты: | C16: =(#REF!+#REF!)/10 ->  | D16: Сила защиты: | F16: =(#REF!+#REF!)/10 ->  | G16: =(#REF!/10)+1 ->  | H16: =(#REF!/10)+1 ->  | K16: =AH42 -> 33 | AF16: =AF15/13*100 -> 0 | AG16: =AG15/13*100 -> 0 | AH16: =AH15/13*100 -> 38.46153846
F17: =IF(AH27=4,"Н(!)",IF(AH27=6,"Ч(!)",IF(AH27>=7,"Ч",IF(AH27<=3,"Н","Не.")))) -> Н | G17: =(#REF!)/10 ->  | H17: =(#REF!/10)-1 ->  | AN17: =IF(AK35=1,AN18,"Неизв.") -> 
K18: ВСЕ | AN18: =IF(AK43=1,"Да",IF(AO37=2,"Нет","Неизв.")) -> Нет
J19: Т(2.5) | K19: Т1 | L19: Т2 | M19: Мощь | O19: 1-Х-2 | R19: Рейтинг
J20: =С1!A13 -> 4.226190476 | K20: =MROUND(С1!B9,0.5) -> 1 | L20: =MROUND(С1!B10,0.5) -> 3 | M20: =С1!D9 -> -0.06428571429 | N20: =С1!D10 -> 1.816666667 | O20: =AVERAGE(С1!V5,С1!W5) -> 0.2517482517 | P20: =AVERAGE(С1!V6,С1!W6) -> 0.08391608392 | Q20: =AVERAGE(С1!V7,С1!W7) -> 0.6643356643 | R20: =С1!F9 -> -0.1477702192 | S20: =С1!F10 -> 0.7387566138
AF21: заб | AG21: проп
AE22: к1 | AF22: =(C15-F16)*100 ->  | AG22: =(F15-C16)*100 -> 
A25: Рабочий лист вычислений прогнозов с привлечением методик "Теории Синдиката" | AF25: =IF(AF22>AG22,1,IF(AF22=AG22,"X",2)) ->  | AY25: АЛЬТА
A26: и таблиц Altadar
A27: Информация на странице неполная. Сами расчёты отсутствуют.
A28: По причине отсутствия необходимой части расчётов Прогноз "Исход Матча №2" не является обоснованным
AE29: оз | AK29: оз
AE30: Лига | AF30: =IF(AF2=1,1,IF(AG2=1,0,2)) ->  | AJ30: альт | AK30: =IF(H11>=I11,1,0) -> 
AE31: 1 | AF31: =IF(AF4=1,1,IF(AG4=1,0,2)) ->  | AJ31: т1т2 | AK31: =IF(L2>=1,IF(M2>=1,1,0),0) -> 1
AE32: 2 | AF32: =IF(AF5=1,1,IF(AG5=1,0,2)) ->  | AJ32: заб | AK32: =IF(V2>=1,IF(W2>=1,1,0),0) -> 1
AE33: 3 | AF33: =IF(AF6=1,1,IF(AG6=1,0,2)) ->  | AJ33: счет | AK33: =IF(Y2>=1,IF(Z2>=1,1,0),0) -> 1
AE34: 4 | AF34: =IF(AF7=1,1,IF(AG7=1,0,2)) ->  | AJ34: сумм | AK34: =SUM(AK30:AK33) -> 
AE35: Альтадар | AF35: =IF(AJ2="Х",0,AJ2) ->  | AJ35: оз | AK35: =IF(AK34=4,1,0) -> 
AE36: 1х2 | AF36: =IF(AJ3="Х",0,AJ3) -> 2
AE37: рейтинг | AF37: =IF(S2>T2,1,IF(S2=T2,0,2)) -> 2 | AO37: =SUM(AO38:AO39) -> 2
AE38: 1х2 | AF38: =AM12 -> 2 | AO38: =IF(AH41=0,1,0) -> 1
AO39: =SUM(AO40:AO41) -> 1
AE40: 1 | AF40: =COUNTIF(AF30:AF38,1) -> 0 | AH40: =ROUND(AF40/9*100,0) -> 0 | AJ40: 1 | AK40: =IF(AH41>=11,1,0) -> 0 | AM40: =IF(AH42=0,AH40,AH40/AH42) -> 0 | AN40: =IF(AM40<2,1,0) -> 1 | AO40: =IF(AM40>3,1,0) -> 0
AE41: x | AF41: =COUNTIF(AF30:AF38,0) -> 0 | AH41: =ROUND(AF41/9*100,0) -> 0 | AJ41: 2 | AK41: =IF(AN42=1,1,0) -> 0 | AM41: =IF(AH40=0,AH42,AH42/AH40) -> 33 | AN41: =IF(AM41<2,1,0) -> 0 | AO41: =IF(AM41>3,1,0) -> 1
AE42: 2 | AF42: =COUNTIF(AF30:AF38,2) -> 3 | AH42: =ROUND(AF42/9*100,0) -> 33 | AJ42: 3 | AK42: =IF(AH45>=59,1,0) -> 0 | AN42: =IF(AN40+AN41=2,1,0) -> 0
AK43: =IF(AK40+AK41+AK42=3,1,0) -> 0
AH45: =MAX(AH40:AH42) -> 33

Sheet Лист1 (3) (hidden)
A3: Тест №1 Анализ 10 последних игр команд дома и в гостях
A6: Последние 10 игр команды 1 | C6: Последние 10 игр команды 2
A7: № игры | B7: Исход | C7: № игры | D7: Исход
A8: 1 | B8: =#REF! ->  | C8: 1 | D8: =#REF! -> 
A9: 2 | B9: =#REF! ->  | C9: 2 | D9: =#REF! -> 
A10: 3 | B10: =#REF! ->  | C10: 3 | D10: =#REF! ->  | F10: Прогноз
A11: 4 | B11: =#REF! ->  | C11: 4 | D11: =#REF! ->  | F11: № ТЕСТА | G11: ПРОГНОЗ
A12: 5 | B12: =#REF! ->  | C12: 5 | D12: =#REF! ->  | F12: Тест №1 | G12: =IF(E21>E22,A21,IF(E21<E22,A22,"Х")) -> 
A13: 6 | B13: =#REF! ->  | C13: 6 | D13: =#REF! ->  | F13: Тест № 2 | G13: =C50 -> 
A14: 7 | B14: =#REF! ->  | C14: 7 | D14: =#REF! ->  | F14: Тест № 3 | G14: =IF(G126>H126,I122,IF(H126>G126,I123,I124)) -> 
A15: 8 | B15: =#REF! ->  | C15: 8 | D15: =#REF! -> 
A16: 9 | B16: =#REF! ->  | C16: 9 | D16: =#REF! -> 
A17: 10 | B17: =#REF! ->  | C17: 10 | D17: =#REF! -> 
A19: Итог анализа Теста №1
A20: Команда | B20: Очки | C20: Значение Теста | D20: Число | E20: ИТОГ
A21: П1 | B21: =B223 ->  | C21: =IF(B21>18,4,IF(B21>15,3,IF(B21>10,2,IF(B21>5,1,0)))) ->  | D21: =IF(D223>=9,3,IF(D223>=6,2,IF(D223>=4,1,0))) ->  | E21: =IF(B21>B22,1,0)+IF(C21>C22,1,0)+D21 -> 
A22: П2 | B22: =C223 ->  | C22: =IF(B22>18,4,IF(B22>15,3,IF(B22>10,2,IF(B22>5,1,0)))) ->  | D22: =IF(E223>=9,3,IF(E223>=6,2,IF(E223>=4,1,0))) ->  | E22: =IF(B22>B21,1,0)+IF(C22>C21,1,0)+D22 -> 
A24: Тест № 2 Теория трёх матчей
B27: Домашняя команда - команда 1 | G27: Гостевая команда - команда 2
A29: Последние 3 игры команды 1 ДОМА | F29: Последние 3 игры команды 2 в гостях
B31: КОМАНДА 1 | C31: гости | D31: Очки | G31: хозяева | H31: КОМАНДА 2 | I31: Очки
A32: 1 игра | B32: =#REF! ->  | C32: =#REF! ->  | D32: =IF(B32>C32,2+(B32-C32),IF(B32=C32,1,0)) ->  | F32: 1 игра | G32: =#REF! ->  | H32: =#REF! ->  | I32: =IF(H32>G32,2+(H32-G32),IF(G32=H32,1,0)) -> 
A33: 2 игра | B33: =#REF! ->  | C33: =#REF! ->  | D33: =IF(B33>C33,2+(B33-C33),IF(B33=C33,1,0)) ->  | F33: 2 игра | G33: =#REF! ->  | H33: =#REF! ->  | I33: =IF(H33>G33,2+(H33-G33),IF(G33=H33,1,0)) -> 
A34: 3 игра | B34: =#REF! ->  | C34: =#REF! ->  | D34: =IF(B34>C34,2+(B34-C34),IF(B34=C34,1,0)) ->  | F34: 3 игра | G34: =#REF! ->  | H34: =#REF! ->  | I34: =IF(H34>G34,2+(H34-G34),IF(G34=H34,1,0)) -> 
C35: Итого: | D35: =SUM(D32,D33,D34) +1 ->  | H35: Итого: | I35: =SUM(I32,I33,I34) -> 
D39: Последние три игры команд между собой
B41: какая команда дома | C41: Счёт | D41: Счёт | E41: Очки | F41: Какая команда победила | G41: Какая команда в гостях
B42: =IF(#REF!="Дома","1",IF(#REF!="В гостях","2","Победа")) ->  | C42: =#REF! ->  | D42: =#REF! ->  | E42: =IF(C42>D42,3+(C42-D42),IF(C42=D42,1,IF(D42>C42,3+(D42-C42),0))) ->  | F42: =IF(C42>D42,B42,IF(D42>C42,G42,0)) ->  | G42: =IF(#REF!="Дома","2",IF(#REF!="В гостях","1","Победа")) -> 
B43: =IF(#REF!="Дома","1",IF(#REF!="В гостях","2","Победа")) ->  | C43: =#REF! ->  | D43: =#REF! ->  | E43: =IF(C43>D43,3+(C43-D43),IF(C43=D43,0,IF(D43>C43,3+(D43-C43),0))) ->  | F43: =IF(C43>D43,B43,IF(D43>C43,G43,0)) ->  | G43: =IF(#REF!="Дома","2",IF(#REF!="В гостях","1","Победа")) -> 
B44: =IF(#REF!="Дома","1",IF(#REF!="В гостях","2","Победа")) ->  | C44: =#REF! ->  | D44: =#REF! ->  | E44: =IF(C44>D44,3+(C44-D44),IF(C44=D44,0,IF(D44>C44,3+(D44-C44),0))) ->  | G44: =IF(#REF!="Дома","2",IF(#REF!="В гостях","1","Победа")) -> 
B45: ИТОГ
B47: Дополнительная информация, НЕОБЯЗАТЕЛЬНО для заполнения:
B48: Кто выше в турнирной таблице? | D48: 1
B50: ИТОГОВЫЙ ВЫВОД: | C50: =IF(Q183=1,Q190,IF(Q185=1,Q177,IF(Q185=2,Q178,T190))) -> 
C52: 1 | D52: 2
B53: Очки | C53: =D35+IF(F42=1,E42,0)+IF(F43=1,E43,0)+IF(F44=1,E44,0) ->  | D53: =I35+IF(F42=2,E42,0)+IF(F43=2,E43,0)+IF(F44=2,E44,0) -> 
B54: Доп. Очки | C54: =IF(Q162=1,1,0) -> 
B55: Итоговые: | C55: =SUM(C53,C54) ->  | D55: =SUM(D53,D54) -> 
A58: Тест №3 Общая теория
A60: Расчёт команды 1 | E60: Число | F60: Расчёт команды 2 | J60: Число
A61: Сколько Побед из 5 последних игр дома | E61: =#REF! ->  | F61: Сколько Побед из 5 последних игр в гостях | J61: =#REF! -> 
A62: Сколько Побед из 5 последних игр вообще | E62: =#REF! ->  | F62: Сколько Побед из 5 последних игр вообще | J62: =#REF! -> 
A63: Сколько Побед из 3 последних игр между командами | E63: =#REF! ->  | F63: Сколько Побед из 3 последних игр между командами | J63: =#REF! -> 
B65: Тесты
A66: №1 | B66: =IF(C121>E121,"Победа 1",IF(E121>C121,"Победа 2",0)) -> 
B69: Прогноз на "Тотал" не является ТОЧНЫМ прогнозом. Стоит рассматривать его как рекомендацию. В случае если данные разных ячеек критически (сильно) противоречат друг другу, верный анализ произвести невозможно. | F69: ПРОГНОЗЫ НА ТОТАЛЫ
G70: Шансы => | H70: Забьёт | I70: Пропустит | J70: примерный счёт
F71: Команда 1 | H71: =X170 ->  | I71: =X169 ->  | J71: =Y179 -> 
F72: Команда 2 | H72: =I71 ->  | I72: =H71 ->  | J72: =Z179 -> 
F73: Тотал матча: | G73: =IF(V170>3,"Больше 3",IF(V170>2,"Больше 2","Меньше 2")) -> 
F78: Второй прогноз на Тоталы
F79: Второй анализ. | G79: Команда 1 | H79: Команда 2
F80: Забьёт в абстрактном матче | G80: =(B32+B33+B34+1+G32+G33+G34)/6 ->  | H80: =(H32+H33+H34+C32+C33+C34+1)/6 -> 
F81: Забьёт/пропустит в конкретном | G81: =(B32+B33+B34)/(C32+C33+C34+1) ->  | H81: =(H32+H33+H34)/(G32+G33+G34+1) -> 
F82: Забьёт в этом матче | G82: =Z158 ->  | H82: =AA158 -> 
C117: Победа 1 | D117: Ничья | E117: Победа 2
C118: =(E62+E61+E63)/13 ->  | E118: =(J61+J62+J63)/13 -> 
C119: =(1+1-1)/3 -> 0.3333333333 | E119: =(1+1-1)/3 -> 0.3333333333
C120: =C118/C119 ->  | D120: 1 | E120: =E118/E119 -> 
C121: =((C125-C120)*C120)/3 ->  | D121: =(C125-D120)*1/3 ->  | E121: =((C125-E120)*E120)*1/3 -> 
I122: П1
I123: П2
I124: Х
C125: =C120+D120+E120 -> 
G126: =G80+G81+G82 ->  | H126: =H80+H81+H82 -> 
Q154: ИНЖЕНЕРНЫЕ ЯЧЕЙКИ ИНЖЕНЕРНЫЕ ЯЧЕЙКИ ИНЖЕНЕРНЫЕ ЯЧЕЙКИ ИНЖЕНЕРНЫЕ ЯЧЕЙКИ ИНЖЕНЕРНЫЕ ЯЧЕЙКИ ИНЖЕНЕРНЫЕ ЯЧЕЙКИ
Z156: Инженерные ячейки
Z157: =G80*G81 ->  | AA157: =H80+H81 -> 
U158: ИНЖЕНЕРНЫЕ ЯЧЕЙКИ | Z158: =Z157/AA157 ->  | AA158: =AA157/Z157 -> 
Q159: Инженерные ячейки | U159: =(B32+B33+B34)/3+W160/3 ->  | V159: =(G32+G33+G34)/3 -> 
Q160: =IF(F42=0,1,0) ->  | U160: =(H32+H33+H34)/3+W161/3 ->  | V160: =(C32+C33+C34)/3 ->  | W160: =IF(B42=1,C42,D42)+IF(B43=1,C43,D43)+IF(B44=1,C44,D44) ->  | X160: команда 1
Q161: =IF(B42=Q166,1,0) ->  | W161: =IF(B42=2,C42,D42)+IF(B43=2,C43,D43)+IF(B44=2,C44,D44) ->  | X161: команда 2
Q162: =IF(Q161=Q160,1,0) -> 
W163: =IF(W160>W161,W160/W161,W161/W160) ->  | X163: =IF(W160>W161,X160,X161) -> 
U164: =(U159*U160*W163)/3 ->  | Y164: =IF(J71=0,1,J71) -> 
U165: 0.5 | Y165: =IF(J72=0,1,J72) -> 
Q166: 2 | U166: 1.5
U167: 2.5
U168: 3.5
X169: =IF(U160>=V160,V160,"0") ->  | Y169: к2
V170: =((X169+X170)*U164)/(U160*V159)+V171 ->  | X170: =IF(U159>=V159,V159,"0") ->  | Y170: к1
Q171: П1 | V171: =(Y164/Y165)*(Y165/Y164)/2 -> 
Q172: П2
Q173: П1
Q174: П2 | Z174: Примерный счёт
Q175: 1Х | V175: ф 1 (+1)
Q176: Х2 | V176: ф 2 (+1) | Y176: =U159*V159*(W160/3)/3 ->  | Z176: =U160*V160*(W161/3)/3 -> 
Q177: 1Х
Q178: Х2
P179: Оценка: | Q179: =IF(Q183=1,C55-D55,IF(Q183=2,D55-C55,0)) ->  | Y179: =IF(Y176>4.55,5,IF(Y176>3.55,4,IF(Y176>2.55,3,IF(Y176>1.55,2,IF(Y176>0.55,1,0))))) ->  | Z179: =IF(Z176>4.55,5,IF(Z176>3.55,4,IF(Z176>2.55,3,IF(Z176>1.55,2,IF(Z176>0.55,1,0))))) -> 
Q183: =IF(C55>D55,1,IF(C55=D55,0,2)) -> 
Q185: =IF(D48=1,1,2)+IF(Q179>0,99,0) ->  | W185: 0.5
W186: 1
W187: 2
Q188: Для команды 1 | T188: Для команды 2 | W188: 3
Q189: =IF(Q183=1,Q179,Q196) ->  | T189: =IF(Q183=2,Q179,U190) -> 
Q190: =IF(Q189>12,Q171,IF(Q189>7,Q173,IF(Q189>4,Q175,IF(Q189>0,V175,Q193)))) ->  | T190: =IF(T189>13,Q172,IF(T189>7,Q174,IF(T189>4,Q176,IF(T189>0,V176,T192)))) -> 
Q191: 1
Q199: =IF(Q179=0,D48,8) -> 
B209: Победа
B210: Ничья
B211: Поражение
B212: к 1 | C212: к2 | D212: к1 | E212: к2
B213: =IF(B8="В",2,IF(B8="Н",1,0)) ->  | C213: =IF(D8="В",2,IF(D8="Н",1,0)) ->  | D213: =IF(B8="В",1,0) ->  | E213: =IF(D8="В",1,0) -> 
B214: =IF(B9="В",2,IF(B9="Н",1,0)) ->  | C214: =IF(D9="В",2,IF(D9="Н",1,0)) ->  | D214: =IF(B9="В",1,0) ->  | E214: =IF(D9="В",1,0) -> 
B223: =SUM(B213:B222) ->  | C223: =SUM(C213:C222) ->  | D223: =SUM(D213:D222) ->  | E223: =SUM(E213:E222) -> 
